Workbook

Sheet Portada

Sheet Indíce
B2: Indíce
B4: 1 | D4: Balance de Comprobación
B5: 2 | D5: Estado de Cambios en los Activos Netos Disponibles
B6: 3 | D6: Estado de Activos Netos Disponibles para Beneficios
B7: 4 | D7: Flujo de Efectivo
B8: 5 | D8: Estado de Cambios en el patrominio
B9: Nota 1 | D9: Ingresos Financieros por efectivo y equivalentes de efectivo
B10: Nota 2 | D10: Ingresos Financieros por inversiones en instrumentos financieros
B11: Nota 3 | D11: Ganancias por Diferencial Cambiario y unidades de desarrollo
B12: Nota 4 | D12: Ingresos por disminución de Estimaciones
B13: Nota 5 | D13: Ingresos Operativos
B14: Nota 6 | D14: Plan de Contribuciones
B15: Nota 7 | D15: Ajuste por deterioro y por valuación de instrumentos
B16: Nota 8 | D16: Salida de recursos
B17: Nota 9 | D17: Pérdidas por Diferencial Cambiario y unidades de desarrollo
B18: Nota 10 | D18: Gasto por estimación de Deterioro
B19: Nota 11 | D19: Gastos Generales
B20: Nota 12 | D20: Cuentas Corrientes y de Ahorro
B21: Nota 13 | D21: Inversiones en Instrumentos Financieros
B22: Nota 14 | D22: Productos y dividendos por cobrar asociados a inversiones en instrumentos financieros
B23: Nota 15 | D23: Cuentas por cobrar
B24: Nota 16 | D24: Aportes por cobrar
B25: Nota 17 | D25: Intangibles
B26: Nota 18 | D26: Retenciones a Pensionados
B27: Nota 19 | D27: Obligaciones Por Liquidar Empleados y Exempleados
B28: Nota 20 | D28: Obligaciones Transitorias por Liquidar
B29: Nota 21 | D29: Cotización Seguro De Enfermedad y Maternidad
B30: Nota 22 | D30: Provisiones para pensiones en curso de pago
B31: Nota 23 | D31: Cuentas de orden deudoras y acreedoras
B32: Nota 24 | D32: Rendimientos acumulados
B33: Nota 25 | D33: Resultados del Periodo
B34: Nota 26 | D34: Ganancias o pérdidas por diferencias de cambio y unidades de desarrollo
B35: Nota 27 | D35: Deterioro de activos financieros
B36: Nota 28 | D36: Instrumentos financieros - Al valor Razonable con cambios en el otro resultado integral
B37: Nota 29 | D37: Instrumentos financieros - Al costo amortizado
B38: Nota 30 | D38: Productos y dividendos por cobrar
B39: Nota 31 | D39: Cuentas por cobrar
B40: Nota 32 | D40: Aportes por cobrar
B41: Nota 33 | D41: Cuentas por pagar
B42: Nota 34 | D42: Provisión para pensiones en curso de pago
B43: Nota 35 | D43: Otros pasivos
B44: Nota 36 | D44: Aportaciones recibidas - Reservas en formación
B45: Nota 37 | D45: Ajuste por valuación de instrumentos financieros al valor razonzable con cambios en el ORI

Sheet Balance de Comprobación
C2: Fondo de Jubilaciones y Pensiones del Poder Judicial
C4: Balance de Comprobación
C6: Al 31 de Octubre 2020
C9: ACTIVO
C10: Cuentas Corrientes y De Ahorro | F10: 6642769908
C11: Al valor razonable con cambios en otros resultados | F11: 4.530184586e+11
C12: Al costo amortizado | F12: 1.5790113e+11
C13: Productos y dividendos por cobrar asociados a inve | F13: 9202540489
C14: Cuentas por cobrar | F14: 835291551.9
C15: Aportes por cobrar a los trabajadores | F15: 5334913333
C16: Aportes por cobrar al Patrono | F16: 4155145220
C17: Aportes por cobrar al Estado | F17: 407516745.3
C18: Otros Aportes por cobrar | F18: 196604041
C19: Valor de adquisición (software) | F19: 7618670
C20: (Amortización acumulada de software adquirido) | F20: -7618670
C21: GASTOS
C22: Otros Gastos Financieros | F22: 881617338.7
C23: Gastos por estimación del deterioro | F23: 9643811.34
C24: Gastos de administración | F24: 599797333.8
C25: PASIVO
C26: Retenciones a Pensionados | H26: 961229719.2
C27: Obligaciones por liquidar empleados y exempleados | H27: 29445739.09
C28: Obligaciones transitorias por liquidar | H28: 4454845433
C29: Provisiones | H29: 599761595.5
C30: Provisión para pensiones en curso de pago | H30: 6.161494867e+11
C31: PATRIMONIO
C32: Patrimonio | H32: 1.093030356e+10
C33: INGRESOS
C34: Ingresos financieros por efectivo y equivalentes de efectivo | H34: 27184827.31
C35: Ingresos Financieros por inversiones en instrumentos | H35: 3898267393
C36: Otros Ingresos Financieros | H36: 1796252778
C37: Ingresos por disminución de Estimaciones | H37: 321590919.3
C38: Ingresos operativos | H38: 17059732.69
C40: Sumas Iguales | F40: =SUM(F10:F24) -> 6.391854284e+11 | H40: =SUM(H26:H38) -> 6.391854284e+11
C46: Lic. Luis Guillermo Vásquez Ureña | F46: MBA. María Antonieta Herrera Charraun
C47: Jefe Subproceso Contable | F47: Jefa Proceso Presupuestario Contable
D53: MBA. Floribel Campos Solano
D55: Jefa a.i. Macroproceso Financiero Contable
C57: Realizado por:
C58: Licda. Yesenia Flores Chacón
C59: Coordinadora de Unidad 1 a.i.
C62: Observación: Enlace al Manual de Políticas Contables.

Sheet Cambios Act. Netos Disponibles
B1: Fondo de Jubilaciones y Pensiones
B2: Estado de Cambios en los Activos Netos Disponibles
B3: Por el mes terminado al 31/10/2020
B4: (En colones sin céntimos)
D7: SALDO MENSUAL | G7: SALDO ACUMULADO
C8: NOTAS
B9: SALDO INICIAL | E9: 1.470776888e+10 | F9: (1) | H9: 5970351615 | I9: (2)
B11: INGRESOS | E11: =D13+D23+D24 -> 6060355650 | H11: =G13+G23+G24 -> 5.918766785e+10
B13: INGRESOS FINANCIEROS | D13: =+D14+D16+D19 -> 5721704998 | G13: =+G14+G16+G19 -> 5.878620216e+10
B14: Ingresos Financieros por efectivo y equivalentes de efectivo | D14: =SUM(D15) -> 27184827.31 | G14: =SUM(G15) -> 375153477.2
B15: Productos por cobrar por intereses en cuentas corres | C15: Nota 1 | D15: =+'Nota 1'!G23 -> 27184827.31 | G15: =+'Nota 1'!G42 -> 375153477.2
B16: Ingresos Financieros por inversiones en instrumentos financieros | D16: =SUM(D17:D18) -> 3898267393 | G16: =SUM(G17:G18) -> 3.714217075e+10
B17: Al valor razonable con cambios en otros resultado | C17: Nota 2 | D17: =+'Nota 2'!I16 -> 3233379287 | G17: =+'Nota 2'!I25 -> 2.901584168e+10
B18: Al costo amortizado | C18: Nota 2 | D18: =+'Nota 2'!I18 -> 664888105.9 | G18: =+'Nota 2'!I27 -> 8126329067
B19: Otros ingresos financieros | D19: =SUM(D20:D22) -> 1796252778 | G19: =SUM(G20:G22) -> 2.126887793e+10
B20: Efectivo y equivalentes de efectivo $ | C20: Nota 3 | D20: =+'Nota 3'!E18 -> 3322552.31 | G20: =+'Nota 3'!F18 -> 142099709
B21: Al valor razonable con cambios en otro resultado integral | C21: Nota 3 | D21: =+'Nota 3'!E24+'Nota 3'!E27 -> 1490340649 | G21: =+'Nota 3'!F24+'Nota 3'!F13+'Nota 3'!F27 -> 1.78613291e+10
B22: Al costo amortizado | C22: Nota 3 | D22: =+'Nota 3'!E26+'Nota 3'!E29+'Nota 3'!E35 -> 302589576.8 | G22: =+'Nota 3'!F26+'Nota 3'!F29+'Nota 3'!F35 -> 3265449122
B23: Ingresos por disminución de estimaciones | C23: Nota 4 | D23: =+'Nota 4'!E15 -> 321590919.3 | G23: =+'Nota 4'!F15 -> 321590919.3
B24: Ingresos Operativos | C24: Nota 5 | D24: =+'Nota 5'!E16 -> 17059732.69 | G24: =+'Nota 5'!F16 -> 79874769.68
B26: PLAN DE CONTRIBUCIONES | C26: Nota 6 | E26: =SUM(D29:D32) -> 7948152567 | H26: =SUM(G29:G32) -> 7.782135335e+10
B28: RESERVAS EN FORMACION
B29: De los trabajadores | D29: =+'Nota 6'!F14 -> 3013325074 | G29: =+'Nota 6'!G14 -> 3.031662891e+10
B30: Del Patrono | D30: =+'Nota 6'!F15 -> 3321316831 | G30: =+'Nota 6'!G15 -> 3.327388431e+10
B31: Del Estado | D31: =+'Nota 6'!F16 -> 325963822.1 | G31: =+'Nota 6'!G16 -> 3261361770
B32: De los Pensionados | D32: =+'Nota 6'!F17+'Nota 6'!F18 -> 1287546839 | G32: =+'Nota 6'!G17+'Nota 6'!G18 -> 1.096947835e+10
B34: AJUSTES AL PATRIMONIO
B35: Ajuste por deterioro y por valuación de instrumentos | C35: Nota 7 | E35: =+'Nota 7'!F16 -> -918323544.5 | H35: =+'Nota 7'!F24 -> 7371923395
B38: RESULTADO DEL PERIODO | E38: =SUM(D39) -> 4569297166
B39: Utilidad del Periodo | D39: =+'Nota 25'!D19 -> 4569297166
B41: TOTAL ADICIONES | E41: =E11+E26+E35 -> 1.309018467e+10 | H41: =H11+H26+H35 -> 1.443809446e+11
B43: SALIDA DE RECURSOS | E43: =D44 -> 1.080729435e+10 | H43: =G44 -> 1.115618432e+11
B44: Por Nuevos Pensionados | C44: Nota 8 | D44: =+'Nota 8'!E16 -> 1.080729435e+10 | G44: =+'Nota 8'!F16 -> 1.115618432e+11
B46: GASTOS | E46: =D48+D56+D58 -> 1491058484 | H46: =G48+G56+G58 -> 2.328985232e+10
B48: GASTOS FINANCIEROS | D48: =+D49 -> 881617338.8 | G48: =+G49 -> 1.695621787e+10
B49: Otros Gastos Financieros | D49: =+D50+D52 -> 881617338.8 | G49: =+G50+G52 -> 1.695621787e+10
B50: Pérdida por diferencial cambiario y unidades de desarrollo | D50: =SUM(D51) -> 1381657.33 | G50: =SUM(G51) -> 77405141.44
B51: Efectivo y Equivalentes de Efectivo $ | C51: Nota 9 | D51: =+'Nota 9'!E17 -> 1381657.33 | G51: =+'Nota 9'!F18 -> 77405141.44
B52: Inversiones en instrumentos financieros | D52: =+D53+D54 -> 880235681.5 | G52: =+G53+G54 -> 1.687881273e+10
B53: Al Valor Razonable con cambios en otro resultado integral | C53: Nota 9 | D53: =+'Nota 9'!E23+'Nota 9'!E26 -> 779206595 | G53: =+'Nota 9'!F23+'Nota 9'!F12+'Nota 9'!F26 -> 1.432937545e+10
B54: Al Costo Amortizado | C54: Nota 9 | D54: =+'Nota 9'!E25+'Nota 9'!E28+'Nota 9'!E34 -> 101029086.5 | G54: =+'Nota 9'!F25+'Nota 9'!F28+'Nota 9'!F34 -> 2549437280
B56: Gastos por estimación del Deterioro | C56: Nota 10 | D56: =+'Nota 10'!E15+'Nota 10'!E21 -> 9643811.34 | G56: =+'Nota 10'!F15+'Nota 10'!F21 -> 352508590.5
B58: GASTOS DE ADMINISTRACIÓN | D58: =+D59 -> 599797333.7 | G58: =+G59 -> 5981125852
B59: Gastos Genrales | C59: Nota 11 | D59: =+'Nota 11'!F21 -> 599797333.7 | G59: =+'Nota 11'!G21 -> 5981125852
B61: TOTAL DE DEDUCCIONES | E61: =E43+E46 -> 1.229835283e+10 | H61: =H43+H46 -> 1.348516955e+11
B63: ACTIVOS NETOS DISPONIBLES PARA BENEFICIOS
B64: FUTUROS AL FINAL DEL PERIODO (3) | E64: =E9+E41-E61 -> 1.549960072e+10 | H64: =H9+H41-H61 -> 1.549960072e+10 | J64: =+E64-H64 -> -0.1199951172
B66: Observaciones:
B67: (1) Saldo inicial mensual: Corresponde al total de activos disponibles para beneficios futuros al final del mes de setiembre 2020.
B68: (2) Saldo acumulado: Pertenece al total de activos disponibles de beneficios futuros al final del año anterior (Diciembre 2019).
B69: (3) Activos Netos Disponibles para Beneficios Futuros al Final del Periodo: Corresponde a la suma del saldo inicial mas el total de adiciones, menos el total de deducciones.
B73: Lic. Luis Guillermo Vásquez Ureña | E73: MBA. María Antonieta Herrera Charraun
B74: Jefe Subproceso Contable | E74: Jefa Proceso Presupuestario Contable
C76: MBA. Floribel Campos Solano
C79: Jefa a.i. Macroproceso Financiero Contable
B80: Realizado por:
B81: Licda. Yesenia Flores Chacón
B82: Coordinadora de Unidad 1 a.i.
B83: Observación: Enlace al Manual de Políticas Contables.

Sheet Act. Netos Dispon. Beneficios
B2: Fondo de Jubilaciones y Pensiones del Poder Judicial
B3: Estado de Activos Netos Disponibles para Beneficios
B4: AL 31/10/2020
B5: (En colones sin céntimos)
C6: NOTAS
B7: EFECTIVO Y EQUIVALENTES DE EFECTIVO | E7: =D8 -> 6642769908
B8: Cuentas Corrientes y de Ahorro | C8: Nota 12 | D8: =+'Nota 12'!D23 -> 6642769908
B10: INVERSIONES EN INSTRUMENTOS FINANCIEROS | E10: =SUM(D12:D17) -> 6.201221291e+11
B12: Al Valor Razoanble con cambios en otro resultado integral | C12: Nota 13 | D12: =+'Nota 13'!G17 -> 4.530184586e+11
B13: Al Valor Razoanble con cambios en resultados | C13: Nota 13 | D13: =+'Nota 13'!G22 -> 0
B14: Al Costo Amortizado | C14: Nota 13 | D14: =+'Nota 13'!G31 -> 1.5790113e+11
B15: Vencidos y Restringidos | C15: Nota 13 | D15: 0
B16: Productos y dividendos por cobrar asociados a inversiones en instrumentos financieros | C16: Nota 14 | D16: =+'Nota 14'!G41 -> 9202540489
E18: =SUM(D20:D21) -> 835291551.9
B19: CUENTAS POR COBARA
B20: Impuesto sobre la renta por cobrar | C20: Nota 15 | D20: =+'Nota 15'!D14 -> 835291551.9
B22: APORTES POR COBRAR | E22: =SUM(D23:D26) -> 1.009417934e+10
B23: Aportes Por Cobrar A Los Trabajadores | C23: Nota 16 | D23: =+'Nota 16'!J12 -> 5334913333
B24: Aportes Por Cobrar Al Patrono | C24: Nota 16 | D24: =+'Nota 16'!J16 -> 4155145220
B25: Aportes Por Cobrar Al Estado | C25: Nota 16 | D25: =+'Nota 16'!J19 -> 407516745.3
B26: Otros Aportes Por Cobrar | C26: Nota 16 | D26: =+'Nota 16'!J22 -> 196604041
B28: OTROS ACTIVOS | E28: 0
B29: Intangibles | C29: Nota 17 | D29: =+'Nota 17'!H8 -> 0
B31: ACTIVO TOTAL | E31: =+E7+E10+E18+E22+E28 -> 6.376943699e+11
B33: CUENTAS POR PAGAR | E33: =SUM(D34:D36) -> 5445520892
B34: Retenciones A Pensionados | C34: Nota 18 | D34: =+'Nota 18'!E17 -> 961229719.2
B35: Obligaciones Por Liquidar Empleados y Exempleados | C35: Nota 19 | D35: =+'Nota 19'!C41 -> 29445739.04
B36: Obligaciones Transitorias por Liquidar | C36: Nota 20 | D36: =+'Nota 20'!D26 -> 4454845433
B38: PROVISIONES | E38: =D39 -> 599761595.5
B39: Cotización Seguro De Enfermedad y Maternidad | C39: Nota 21 | D39: =+'Nota 21'!F12 -> 599761595.5
B41: PROVISIONES PARA PENSIONES EN CURSO DE PAGO | C41: Nota 22 | E41: =+'Nota 22'!J16 -> 6.161494867e+11
B43: PASIVO TOTAL | E43: =E41+E38+E33 -> 6.221947692e+11
B45: ACTIVOS NETOS DISPONIBLES PARA BENEFICIOS FUTUROS (1) | E45: =+'Cambios Act. Netos Disponibles'!E64 -> 1.549960072e+10
B47: RESERVAS EN FORMACIÓN | C47: Nota 6 | E47: =SUM(D48:D51) -> 7948152567
B48: De los trabajadores | D48: =+'Nota 6'!F14 -> 3013325074
B49: Del patrono | D49: =+'Nota 6'!F15 -> 3321316831
B50: Del Estado | D50: =+'Nota 6'!F16 -> 325963822.1
B51: De los pensionados | D51: =+'Nota 6'!F17+'Nota 6'!F18 -> 1287546839
B53: RENDIMIENTOS ACUMULADOS | C53: Nota 24 | E53: =SUM(D54:D55) -> 0
B54: Rendimientos devengados | D54: =+'Nota 24'!G14 -> 3256251107
B55: (Traslado de recursos a la provisión para pensiones en curso de pago) | D55: =+'Nota 24'!G15 -> -3256251107
B56: AJUSTES AL PATRIMONIO | C56: Nota 7 | E56: =SUM(D57) -> -918323544.5
B57: Ajuste por deterioro y por valuación de instrumentos | D57: =+'Nota 7'!F16 -> -918323544.5
B58: RESULTADO DEL PERIODO | C58: Nota 25 | E58: =SUM(D59) -> 4569297166
B59: Utilidad del periodo | D59: =+'Nota 25'!D19 -> 4569297166
B60: CUENTAS DE ORDEN | C60: Nota 23 | E60: =+'Nota 23'!D12 -> 348918752
B61: Observaciones:
B62: (1) Activos Netos Disponibles para Beneficios Futuros al Final del Periodo: Corresponde al total de activo menos el total de pasivo.
B66: Lic. Luis Guillermo Vásquez Ureña | C66: MBA. María Antonieta Herrera Charraun
B67: Jefe Subproceso Contable | C67: Jefa Proceso Presupuestario Contable
B72: MBA. Floribel Campos Solano
B73: Jefa a.i. Macroproceso Financiero Contable
B76: Realizado por:
B77: Licda. Yesenia Flores Chacón
B78: Coordinadora de Unidad 1 a.i.
B80: Observación: Enlace al Manual de Políticas Contables.

Sheet Flujo de Efectivo
B1: Fondo de Jubilaciones y Pensiones
B2: Flujo de Efectivo
B3: Por el mes terminado al 31/10/2020
B4: (En colones sin céntimos)
C6: NOTA | D6: Perido actual | E6: Periodo anterior
B7: Flujo de efectivo de las actividades de operación
B8: Resultados del período | C8: NOTA 25 | D8: 4569297166 | E8: 3256251107
B9: Partidas aplicadas a resultados que no requieren uso de fondos
B10: Aumento/(Disminución) por
B11: Depreciaciones y amortizaciones | D11: 0 | E11: 0
B12: Ganancias o pérdidas por diferencias de cambio y unidades de desarrollo | C12: NOTA 26 | D12: -914635439.1 | E12: -1222597527
B13: Ganancias o pérdidas por venta activos no financieros | D13: 0 | E13: 1493362659
B14: Ingresos Financieros | D14: 0 | E14: 0
B15: Estimaciones por Inversiones | D15: 0 | E15: 0
B16: Estimaciones por cartera de crédito | D16: 0 | E16: 0
B17: Estimaciones por otros activos | D17: 0 | E17: 0
B18: Provisiones por prestaciones sociales | D18: 0 | E18: 0
B19: Otras provisiones | D19: 0 | E19: 0
B20: Deterioro de activos financieros | C20: NOTA 27 | D20: 9643811.34 | E20: -205499339
B21: Deterioro de propiedades, mobiliario y equipo | D21: 0 | E21: 0
B22: Deterioro de otros activos | D22: 0 | E22: 0
B23: Otros cargos (abonos) a resultado que no significan movimientos de efectivo | D23: 0 | E23: 0
B24: Gasto impuesto de renta | D24: 0 | E24: 0
B25: Flujos de efectivo por actividades de operación | D25: 0 | E25: 0
B26: Aumento/(Disminución) por | D26: 0 | E26: 0
B27: Efectivo y equivalentes de efectivo | D27: 0 | E27: 0
B28: Instrumentos financieros - Al valor Razonable con cambios en el otro resultado integral | C28: NOTA 28 | D28: -7506970494 | E28: -4.546844524e+10
B29: Instrumentos financieros - Al valor Razonable con cambios en Resultados
B30: Instrumentos financieros - Al costo amortizado | C30: NOTA 29 | D30: 1853490022 | E30: 3.7760476e+10
B31: Instrumentos financieros - Derivados | D31: 0 | E31: 0
B32: Cartera de créditos | D32: 0 | E32: 0
B33: Productos y dividendos por cobrar | C33: NOTA 30 | D33: -4755131147 | E33: -8626355489
B34: Cuentas por cobrar | C34: NOTA 31 | D34: 653989767.9 | E34: -688390793
B35: Aportes por cobrar | C35: NOTA 32 | D35: -88970123.34 | E35: -489478359.6
B36: Bienes y valores adquiridos en recuperación de créditos | D36: 0 | E36: 0
B37: Otros activos | D37: 0 | E37: 0
B38: Cuentas por pagar | C38: NOTA 33 | D38: -453054622.7 | E38: 789699346.9
B39: Productos por pagar - Derivados | D39: 0 | E39: 0
B40: Provisión para pensiones en curso de pago | C40: NOTA 34 | D40: -183275006.9 | E40: 973185717.3
B41: Otros pasivos | C41: NOTA 35 | D41: -230117.47 | E41: 8582483.46
B42: Impuesto sobre la renta | D42: 0 | E42: 0
B43: Flujos de efectivo por actividades de inversión | D43: 0 | E43: 0
B44: Aumento/(Disminución) por | D44: 0 | E44: 0
B45: Productos y dividendos cobrados | C45: NOTA 30 | D45: 2399155396 | E45: 1.360092033e+10
B46: Propiedades, planta y equipo | D46: 0 | E46: 0
B47: Intangibles | D47: 0 | E47: 0
B48: Otras actividades de inversión | D48: 0 | E48: 0
B49: Efectivo neto proveniente de actividades de inversión | D49: 0 | E49: 0
B50: Flujos de efectivo por actividades de financiación | D50: 0 | E50: 0
B51: Aumento/(Disminución) por: | D51: 0 | E51: 0
B52: Obligaciones Financieras | D52: 0 | E52: 0
B53: Aportaciones recibidas - Reservas en formación | C53: NOTA 36 | D53: 397109325.1 | E53: 380659523.8
B54: Dividendos | D54: 0 | E54: 0
B55: Otras actividades de financiación | D55: 0 | E55: 0
B56: Efectivo neto proveniente de actividades de financiación | D56: 0 | E56: 0
B57: Efectos de las ganancias o pérdidas de cambio en el efectivo y equivalentes al efectivo | D57: 0 | E57: 0
B58: Incremento (Disminución) neto de efectivo y equivalentes de efectivo | D58: 0 | E58: 0
B59: Efectivo y equivalentes de efectivo al principio del período | D59: 1.066235137e+10 | E59: 9099980947
B60: Efectivo y equivalentes de efectivo al final del período | D60: 6642769908 | E60: 1.066235137e+10
B65: Lic. Luis Guillermo Vásquez Ureña | C65: MBA. María Antonieta Herrera Charraun
B66: Jefe Subproceso Contable | C66: Jefa Proceso Presupuestario Contable
B71: MBA. Floribel Campos Solano
B72: Jefa a.i. Macroproceso Financiero Contable
B75: Realizado por:
B76: Licda. Yesenia Flores Chacón
B77: Coordinadora de Unidad 1 a.i.

Sheet Estado de Camb en el Patrimonio
B1: Fondo de Jubilaciones y Pensiones
B2: Estado de Cambios en el Patrimonio
B3: Por el mes terminado al 31/10/2020
B4: (En colones sin céntimos)
B5: Descripción [1] | C5: Notas | D5: Reservas en formación | E5: Rendimientos acumulados | F5: Ajustes al Patrimonio - otros resultados integrales | G5: Otras reservas | H5: Resultados del periodo | I5: TOTAL
B6: Saldo al 1 de setiembre de 2020 | D6: 1980175693 | E6: 3907145297 | F6: 8006590997 | G6: 0 | H6: 0 | I6: =SUM(D6:H6) -> 1.389391199e+10
B7: Cambios en las políticas contables
B8: Corrección de errores materiales
B9: Resultado del 2020
B10: Reservas legales y otras reservas estatutarias
B11: Aportaciones recibidas | D11: 1181095143 | I11: =SUM(D11:H11) -> 1181095143
B12: (Traslado o liquidación de recursos) | E12: -3907145297 | I12: =SUM(D12:H12) -> -3907145297
B13: Superavit por revaluación de activos
B14: Ajuste por valuación de instrumentos financieros al valor razonzable con cambios en el ORI | F14: 283655943.2 | I14: =SUM(D14:H14) -> 283655943.2
B15: Ajuste por valuación de instrumentos derivados
B16: Reserva saldos deudores
B17: Utilidad (Pérdida) del periodo | H17: 3256251107 | I17: =SUM(D17:H17) -> 3256251107
B18: Saldo al 30 de setiembre de 2020 | D18: =SUM(D6:D17) -> 3161270836 | E18: =SUM(E6:E17) -> 0 | F18: 8290246940 | G18: 0 | H18: 3256251107 | I18: 1.470776888e+10
B19: Otros resultados integrales de 2020 | E19: 3256251107 | H19: =-E19 -> -3256251107 | I19: =SUM(D19:H19) -> 0
B20: Resultados Integrales Totales del 2020
B21: Saldo al 1 de octubre del 2020 | D21: =SUM(D18:D20) -> 3161270836 | E21: =SUM(E18:E20) -> 3256251107 | F21: 8290246940 | G21: 0 | H21: 0 | I21: =SUM(I18:I20) -> 1.470776888e+10
B22: Cambios en las políticas contables
B23: Corrección de errores materiales
B24: Saldo corregido 2020
B25: Ganancia o pérdida no reconocida en resultados Periodo 2
B26: Resultado Periodo 2020
B27: Otros resultados integrales 2020
B28: Resultados Integrales Totales del 2020
B29: Reservas legales y otras reservas estatutarias
B30: Aportaciones recibidas (Contribución solidaria) | C30: NOTA 36 | D30: 397109325.1 | I30: =SUM(D30:H30) -> 397109325.1
B31: (Traslado o liquidación de recursos) | C31: NOTA 24 | E31: -3256251107 | I31: =SUM(D31:H31) -> -3256251107
B32: Superavit por revaluación de activos | I32: 0
B33: Ajuste por valuación de instrumentos financieros al valor razonzable con cambios en el ORI | C33: NOTA 37 | F33: -918323544.5 | I33: -918323544.5
B34: Ajuste por valuación de instrumentos derivados | I34: 0
B35: Reserva saldos deudores | I35: 0
B36: Utilidad (Pérdida) del periodo | C36: NOTA 25 | H36: 4569297166 | I36: 4569297166
B37: Saldo al 31 de octubre de 2020 | D37: =SUM(D21:D36) -> 3558380161 | E37: =SUM(E21:E36) -> 0 | F37: 7371923395 | G37: 0 | H37: 4569297166 | I37: =SUM(I21:I36) -> 1.549960072e+10
B40: Nota: De acuerdo a lo indicado por la SUPEN el saldo de este estado debe coincidir con el dato del Estado de Cambios de activos netos disponibles.
B42: Lic. Luis Guillermo Vásquez Ureña | F42: MBA. María Antonieta Herrera Charraun
B43: Jefe Subproceso Contable | F43: Jefa Proceso Presupuestario Contable
C46: MBA. Floribel Campos Solano
D47: Jefa a.i. Macroproceso Financiero Contable
B49: Realizado por:
B50: Licda. Yesenia Flores Chacón
B51: Coordinadora de Unidad 1 a.i.

Sheet Nota 1
C2: Nota 1:
C3: Ingresos Financieros por efectivo y equivalentes de efectivo
C5: al 31 de Octubre de 2020
C7: Como resultado de los saldos que se mantienen en las cuentas corrientes del Banco Nacional de Costa Rica, Banco de Costa Rica y Banco Popular, al cierre del presente mes los intereses sobre saldos en cuentas corrientes son los siguientes:
C10: MENSUAL
C11: Cuenta Contable | E11: Banco | G11: Intereses Ganados en el Mes | I11: Tipo de Cambio | K11: Total $
C13: 510.01.04.00.00.1.00.01 | E13: Intereses Fondos Ctas Corrientes-Banco Nacional de CR 1234-0-¢ | G13: 313.75
C14: 510.01.04.00.00.1.00.02 | E14: Intereses Fondos Ctas Corrientes-Banco de Costa Rica 229-32-9-¢ | G14: 26698684.64
C15: 510.01.04.00.00.1.00.05 | E15: Sobre equivalentes de efectivo ¢ | G15: 0
C16: 510.01.04.00.00.1.00.06 | E16: Reportos ¢ | G16: 0
C17: 510.01.04.00.00.2.00.01 | E17: Intereses Fondos Ctas Corrientes-Banco Nacional de CR Cta No 601277-7-$ | G17: 0
C18: 510.01.04.00.00.2.00.03 | E18: Intereses Fondos Ctas Corrientes-Banco de Costa Rica 112247-9-$ | G18: 485828.92 | I18: 609.96 | K18: =+G18/I18 -> 796.4930815
C19: 510.01.04.00.00.2.00.04 | E19: Sobre equivalentes de efectivo $ | G19: 0
C20: 510.01.04.00.00.2.00.05 | E20: Reportos $ | G20: 0
C21: 510.01.04.00.00.4.00.01 | E21: Sobre equivalentes de efectivo (UD) | G21: 0
C22: 510.01.04.00.00.4.00.02 | E22: Reportos (UD) | G22: 0
E23: Total | G23: =SUM(G13:G22) -> 27184827.31 | K23: =SUM(K13:K18) -> 796.4930815
C26: ACUMULADO
C27: Cuenta Contable | E27: Banco | G27: Intereses Acumulados | I27: Tipo de Cambio | K27: Total $
C29: 510.01.04.00.00.1.00.01 | E29: Intereses Fondos Ctas Corrientes-Banco Nacional de CR 1234-0-¢ | G29: 4037.89
C30: 510.01.04.00.00.1.00.02 | E30: Intereses Fondos Ctas Corrientes-Banco de Costa Rica 229-32-9-¢ | G30: 369447389.6
C31: 510.01.04.00.00.1.00.03 | E31: Intereses Fondos Ctas Corrientes-Banco Popular Cta 18-1019277-¢ | G31: 163.07
C32: 510.01.04.00.00.1.00.04 | E32: Intereses Fondos Ctas Corrientes-Banco de Costa Rica Cta 174961-7-¢ | G32: 0
C33: 510.01.04.00.00.1.00.05 | E33: Sobre equivalentes de efectivo ¢ | G33: 0
C34: 510.01.04.00.00.1.00.06 | E34: Reportos ¢ | G34: 0
C35: 510.01.04.00.00.2.00.01 | E35: Intereses Fondos Ctas Corrientes-Banco Nacional de CR Cta No 601277-7-$ | G35: 0
C36: 510.01.04.00.00.2.00.02 | E36: Intereses Fondos Ctas Corrientes-Banco Popular Cta No 1914-1-$ | G36: 0
C37: 510.01.04.00.00.2.00.03 | E37: Intereses Fondos Ctas Corrientes-Banco de Costa Rica 112247-9-$ | G37: 5701886.64 | I37: =+I18 -> 609.96 | K37: =+G37/I37 -> 9347.968129
C38: 510.01.04.00.00.2.00.04 | E38: Sobre equivalentes de efectivo $ | G38: 0
C39: 510.01.04.00.00.2.00.05 | E39: Reportos $ | G39: 0
C40: 510.01.04.00.00.4.00.01 | E40: Sobre equivalentes de efectivo (UD) | G40: 0
C41: 510.01.04.00.00.4.00.02 | E41: Reportos (UD) | G41: 0
E42: Total | G42: =SUM(G29:G41) -> 375153477.2 | K42: =SUM(K29:K37) -> 9347.968129

Sheet Nota 2
B2: Nota 2:
B3: Ingresos Financieros por inversiones en instrumentos financieros
B5: al 31 de Octubre de 2020
B9: De acuerdo con lo establecido por la SUPEN, en este grupo se registran las cuentas sobre intereses, dividendos y rendimientos sobre inversiones en instrumentos financieros, por efectivo y equivalentes de efectivo; tanto a nivel nacional y extranjero.
B12: MENSUAL
A13: Cuenta Contable | B13: Ingresos Financieros por inversiones en instrumentos financieros | D13: COLONES | F13: DOLARES | H13: UDES | I13: TOTAL
B15: Intereses, Dividendos y Rendimientos devengados
A16: 510.02.01 | B16: Al valor razonable con cambios en otros resultado integral | D16: 2839393108 | F16: 386847380.7 | H16: 7138798.12 | I16: =SUM(D16:H16) -> 3233379287
A17: 510.02.02 | B17: Al valor razonable con cambios en resultados | D17: 0 | F17: 0 | H17: 0 | I17: =SUM(D17:H17) -> 0
A18: 510.02.03 | B18: Al costo amortizado | D18: 570349826.5 | F18: 54358630.76 | H18: 40179648.57 | I18: =SUM(D18:H18) -> 664888105.9
B19: Total de Ingresos Financieros por inversiones en instrumentos financieros | D19: =SUM(D16:D18) -> 3409742934 | F19: =SUM(F16:F18) -> 441206011.5 | H19: =SUM(H16:H18) -> 47318446.69 | I19: =SUM(I16:I18) -> 3898267393
B21: Acumulado
A22: Cuenta Contable | B22: Ingresos Financieros por inversiones en instrumentos financieros | D22: COLONES | F22: DOLARES | H22: UDES | I22: TOTAL
B24: Intereses, Dividendos y Rendimientos devengados
A25: 510.02.01 | B25: Al valor razonable con cambios en otros resultado integral | D25: 2.489842841e+10 | F25: 4104642628 | H25: 12770645.67 | I25: =SUM(D25:H25) -> 2.901584168e+10
A26: 510.02.02 | B26: Al valor razonable con cambios en resultados | D26: 0 | F26: 0 | H26: 0 | I26: =SUM(D26:H26) -> 0
A27: 510.02.03 | B27: Al costo amortizado | D27: 7009489950 | F27: 537266203.9 | H27: 579572913.4 | I27: =SUM(D27:H27) -> 8126329067
B28: Total de Ingresos Financieros por inversiones en instrumentos financieros | D28: =SUM(D25:D27) -> 3.190791836e+10 | F28: =SUM(F25:F27) -> 4641908832 | H28: =SUM(H25:H27) -> 592343559.1 | I28: =SUM(I25:I27) -> 3.714217075e+10

Sheet Nota 3
B2: Nota 3:
B3: Ganancias por Diferencial Cambiario y unidades de desarrollo
B5: =+'Nota 2'!$B$5:$H$5 -> al 31 de Octubre de 2020
B8: Se registran otros ingresos referente a ganancia generada producto del diferencial cambiario en los instrumentos de la cartera del Fondo de Jubilaciones.
A11: Ganancia realizada en instrumentos financieros
A12: Cuenta Contable | B12: Cuenta | D12: Moneda | E12: Mensual | F12: Acumulado
B13: Al valor razonable con cambios en otro resultado integral | E13: =SUM(E14:E15) -> 0 | F13: =SUM(F14:F15) -> 594312935
A14: 510.04.01.01.00.1.00.02 | B14: Ganancia Ministerio de Hacienda ¢ | D14: Colones | F14: 539528324.2
A15: 510.04.01.01.00.4.00.02 | B15: Ganancia Ministerio de Hacienda (UD) | D15: UDES | F15: 54784610.74
A17: Cuenta Contable | B17: Cuenta | D17: Moneda | E17: Mensual | F17: Acumulado
B18: Efectivo y Equivalentes de Efectivo | E18: =SUM(E19:E21) -> 3322552.31 | F18: =SUM(F19:F21) -> 142099709
A19: 510.04.10.01.00.2.00.01 | B19: Cuentas corrientes | D19: Dólares | E19: 3322552.31 | F19: 142099709
A20: 510.04.10.01.00.2.00.02 | B20: Sobre equivalentes de efectivo | D20: Dólares | E20: 0 | F20: 0
A21: 510.04.10.01.00.2.00.03 | B21: Reportos | D21: Dólares | E21: 0 | F21: 0
B23: Inversiones en instrumentos financieros | E23: =SUM(E24:E29) -> 1792930225 | F23: =SUM(F24:F29) -> 2.053246244e+10
A24: 510.04.10.02.01.2.00 | B24: Al valor razonable con cambios en otro resultado integral $ | D24: Dólares | E24: 1472424951 | F24: 1.724908691e+10
A25: 510.04.10.02.02.2.00 | B25: Al valor razonable con cambios en resultados $ | D25: Dólares | E25: 0 | F25: 0
A26: 510.04.10.02.03.2.00 | B26: Al costo amortizado $ | D26: Dólares | E26: 183850870.8 | F26: 2365776479
A27: 510.04.10.02.01.4.00 | B27: Al valor razonable con cambios en otro resultado integral (UD) | D27: UDES | E27: 17915697.51 | F27: 17929263.4
A28: 510.04.10.02.02.4.00 | B28: Al valor razonable con cambios en resultados (UD) | D28: UDES | E28: 0 | F28: 0
A29: 510.04.10.02.03.4.00 | B29: Al costo amortizado (UD) | D29: UDES | E29: 118738706 | F29: 899669796.8
B31: Cuentas, Productos y Dividendos por cobrar | E31: =SUM(E32:E39) -> 0 | F31: =SUM(F32:F39) -> 2846.2
A32: 510.04.10.03.00.2.00 | B32: Al valor razonable con cambios en otro resultado integral $ | D32: Dólares | E32: 0 | F32: 0
A33: 510.04.10.03.00.2.01 | B33: Al valor razonable con cambios en resultados $ | D33: Dólares | E33: 0 | F33: 0
A34: 510.04.10.03.00.2.02 | B34: Al costo amortizado $ | D34: Dólares | E34: 0 | F34: 0
A35: 510.04.10.03.00.2.03 | B35: Ganancia del Impuesto sobre la renta por cobrar $ | D35: Dólares | E35: 0 | F35: 2846.2
A36: 510.04.10.03.00.4.00 | B36: Al valor razonable con cambios en otros resultados integral (UD) | D36: UDES | E36: 0 | F36: 0
A37: 510.04.10.03.00.4.01 | B37: Al valor razonable con cambios en resultados (UD) | D37: UDES | E37: 0 | F37: 0
A38: 510.04.10.03.00.4.02 | B38: Al costo amortizado (UD) | D38: UDES | E38: 0 | F38: 0
A39: 510.04.10.03.00.4.03 | B39: Ganancia del Impuesto sobre la renta por cobrar (UD) | D39: UDES | E39: 0 | F39: 0
A55: Interpretación Gráfica
A56: Esta nota se complementa con la nota N° 9

Sheet Nota 4
B2: Nota 4:
B3: Ingresos por disminución de Estimaciones
B5: =+'Nota 2'!$B$5:$H$5 -> al 31 de Octubre de 2020
B8: Registra el resultado positivo de la valoración del deterioro de las operaciones de inversión cumpliendo con la normativa vigente, específico para el Fondo de Jubilaciones y Pensiones del Poder Judicial.
A11: Cuenta Contable | B11: Cuenta | D11: Moneda | E11: Mensual | F11: Acumulado
A12: 511.01.00.00.00.1 | B12: De inversiones en Instrumentos Financieros ¢ | D12: Colones | E12: 196241018.4 | F12: 196241018.4
A13: 511.01.00.00.00.2 | B13: De inversiones en Instrumentos Financieros $ | D13: Dólares | E13: 86739592.28 | F13: 86739592.28
A14: 511.01.00.00.00.4 | B14: De inversiones en Instrumentos Financieros (UDES) | D14: UDES | E14: 38610308.62 | F14: 38610308.62
B15: Total | E15: =SUM(E12:E14) -> 321590919.3 | F15: =SUM(F12:F14) -> 321590919.3
A18: Según el análisis realizado por el Proceso de Inversiones se realizó un ajuste contable para dar cumplimiento a lo estipulado en las NIFF 9 y Nic 1, para lo cual se registra en forma positiva en una cuenta de resultados, con el objetivo de que el monto concilie con la cuenta de activo.

Sheet Nota 5
B2: Nota 5:
B3: Ingresos Operativos
B5: =+'Nota 2'!$B$5:$H$5 -> al 31 de Octubre de 2020
B8: Comprende las cuentas para el registro de los ingresos originados por operaciones no frecuentes, saldos a favor en céntimos de transferencias al Sistema Centralizado de Recaudación (SICERE), específico para el Fondo de Jubilaciones y Pensiones del Poder Judicial.
A11: Cuenta Contable | B11: Cuenta | D11: Moneda | E11: Mensual | F11: Acumulado
B12: Otros ingresos operativos
A13: 513.02.04.00.00.1.00.01 | B13: Ingresos diversos ¢ | D13: Colones | E13: 8555008.62 | F13: 45278040.21
A14: 513.02.04.00.00.2.00.01 | B14: Ingresos diversos $ | D14: Dólares | E14: 8504393.69 | F14: 34589024.26
A15: 513.02.04.00.00.4.00.01 | B15: Ingresos diversos (UDS) | D15: UDES | E15: 330.38 | F15: 7705.21
B16: Total Otros ingresos operativos | E16: =SUM(E13:E15) -> 17059732.69 | F16: =SUM(F13:F15) -> 79874769.68

Sheet Nota 6
B2: Nota 6:
B3: PLAN DE CONTRIBUCIONES
B5: =++'Nota 2'!$B$5:$H$5 -> al 31 de Octubre de 2020
B8: Comprende los aportes realizados por el Poder Judicial en su calidad de Patrono y Estado, los cuales se aplican sobre los salarios devengados por los servidores judiciales.
B10: Asimismo, está constituido por la contribución de los empleados, jubilados y pensionados judiciales, a los cuales en la actualidad se les deduce de su salario, jubilación y pensión.
A12: Cuenta Contable | B12: Aportes | D12: Porcentajes | F12: Mensual | G12: Acumulado
A14: 312.01.01.00.00.1.00 | B14: Trabajadores | D14: 0.13 | F14: 3013325074 | G14: 3.031662891e+10
A15: 312.02.01.00.00.1.00 | B15: Patrono | D15: 0.1436 | F15: 3321316831 | G15: 3.327388431e+10
A16: 312.03.01.00.00.1.00 | B16: Estado | D16: 0.0141 | F16: 325963822.1 | G16: 3261361770
A17: 312.04.01.00.00.1.00.01 | B17: Jubilados y Pensionados | D17: 0.13 | F17: 890437513.8 | G17: 8844032992
A18: 312.04.01.00.00.1.00.02 | B18: Contribución Solidaria | D18: - | F18: 397109325.1 | G18: 2125445362
B20: Total Aportes | F20: =SUM(F14:F18) -> 7948152567 | G20: =SUM(G14:G18) -> 7.782135335e+10
B22: Notas:
B23: 1-) Cálculo del Monto acumulado
B24: Se debe restar el asiento de apertura en el balance acumulado
B25: Monto del Balance | D25: Asiento de apertura | F25: Acumulado
B26: 2.317572082e+11 | D26: 2.014405793e+11 | F26: =+B26-D26 -> 3.031662891e+10
B27: 2.751669447e+11 | D27: 2.418930604e+11 | F27: =+B27-D27 -> 3.327388431e+10
B28: 1.667387049e+10 | D28: 1.341250872e+10 | F28: 3261361770
B29: 5.580908241e+10 | D29: 4.696504942e+10 | F29: 8844032992
B30: 3558380161 | D30: 1432934799 | F30: 2125445362
B31: 2-) Mediante la publicación de la Ley 9544, que reforma el Regimen de Jubilaciones y Pensiones del Poder Judicial y Acuerdo del Consejo Superior Sesión N°46-18 celebrada el 22/05/2018, art VI, se solicita realizar a partir de esta fecha el incremento al aporte obrero del 11% al 13%, así como el rebajo de la contribución especial, solidaria y redistributiva a las personas jubiladas y pensionadas, conforme el articulo 236 de esta Ley.
B33: 3-) En el Acuerdo del Consejo Superior, sesión N° 4-19 del 17 de enero de 2019 artículo XXXVI se acordó: "Tomar nota de la comunicación de la Dirección de Gestión Humana, en oficio DGH-004-2019 del 10 de enero de 2019, referente a el cambio realizado en el parámetro del aporte estatal al Fondo de Jubilaciones y Pensiones de un 0.58% a 1.24%, fundamentado en los recursos asignados por el Ministerio de Hacienda en la subpartida 60404, según lo establecido en la Ley de Presupuesto Ordinario y Extraordinario de la República para el Ejercicio Económico del 2019."
B35: 4-) En el aporte de trabajadores incluye el rubro de Reconocimiento de tiempo servido.
B36: 5-) Según la directriz DGPN-SD-0242-2019 del 12 de abril de 2019, el porcentaje del aporte estatal cambia a 1.41% a partir de enero de 2020.

Sheet Nota 7
B2: Nota 7:
B3: Ajuste por deterioro y por valuación de instrumentos
B5: =+'Nota 6'!B5:G5 -> al 31 de Octubre de 2020
B8: Se registran los ajustes al patrimonio que representan correcciones en su valor, como, valuación de instrumentos financieros y de derivados, según las reglas de valuación establecidas para las cuentas de activo.
A10: MENSUAL
A11: Cuenta Contable | B11: Cuenta | C11: Colón | D11: Dólar | E11: UDES | F11: Mensual
A13: 314.02.01.00.00 | B13: Ganancias no realizadas por valuación de instr. | C13: -177392744.7 | D13: -860449427.8 | E13: 0 | F13: =+C13+D13+E13 -> -1037842173
A14: 314.02.02.00.00 | B14: (Pérdidas no realizadas por valuación de instr. | C14: 168674056.2 | D14: -216617877.8 | E14: 163446051.2 | F14: =+C14+D14+E14 -> 115502229.7
A15: 314.02.03.00.00 | B15: Ajuste por deterioro de instrumentos financieros | C15: 3089066.35 | D15: 759845.51 | E15: 167486.59 | F15: 4016398.45
B16: TOTAL | F16: =SUM(F13:F15) -> -918323544.5
A18: Acumulado
A19: Cuenta Contable | B19: Cuenta | C19: Colón | D19: Dólar | E19: UDES | F19: Acumulado
A21: 314.02.01.00.00 | B21: Ganancias no realizadas por valuación de instr. | C21: 1.409692908e+10 | D21: 355937066.1 | E21: 0 | F21: =+C21+D21+E21 -> 1.445286615e+10
A22: 314.02.02.00.00 | B22: (Pérdidas no realizadas por valuación de instr. | C22: 38210004.18 | D22: -6873767638 | E22: -483416280.8 | F22: =+C22+D22+E22 -> -7318973915
A23: 314.02.03.00.00 | B23: Ajuste por deterioro de instrumentos financieros | C23: 143558897.1 | D23: 92955428.37 | E23: 1516837.39 | F23: 238031162.9
B24: TOTAL | F24: =SUM(F21:F23) -> 7371923395

Sheet Nota 8
B2: Nota 8:
B3: SALIDA DE RECURSOS
B5: =+'Nota 6'!B5:G5 -> al 31 de Octubre de 2020
B8: Corresponde al traslado de todos los recursos de la cuenta patrimonial “Reserva en Formación” a la cuenta Provisión para Pensiones en Curso de Pago”, por ende todos los recursos generados de los aportes, así como los rendimientos obtenidos por las inversiones se continúan registrando en la Provisión Para Pensiones en Curso de Pago.
D11: Cuenta | E11: Mensual | F11: Acumulado
D13: Aportes | E13: 7551043242 | F13: 7.569590799e+10
D14: Rendimientos | E14: 3256251107 | F14: 3.586593518e+10
D16: TOTAL | E16: =SUM(E13:E14) -> 1.080729435e+10 | F16: =SUM(F13:F14) -> 1.115618432e+11
B19: Detalle de los rendimientos acumlados:
D21: Mes Correspondiente | E21: Periodo del traslado | F21: Monto
D22: Diciembre | E22: Enero | F22: 4537416816
D23: Enero | E23: Febreo | F23: 2571402347
D24: Febrero | E24: Marzo | F24: 3130647697
D25: Marzo | E25: Abril | F25: 4599735491
D26: Abril | E26: Mayo | F26: 1775522493
D27: Mayo | E27: Junio | F27: 3697345480
D28: Junio | E28: Julio | F28: 3907145297
D29: Julio | E29: Agosto | F29: 3893119425
D30: Agosto | E30: Setiembre | F30: 4497349031
D31: Setiembre | E31: Octubre | F31: 3256251107
D32: Octubre | E32: Noviembre
D33: Noviembre | E33: Diciembre
D34: Total | F34: =SUM(F22:F33) -> 3.586593518e+10

Sheet Nota 9
B2: Nota 9:
B3: Pérdidas por Diferencial Cambiario y unidades de desarrollo
B5: =+'Nota 6'!B5:G5 -> al 31 de Octubre de 2020
B8: Se registran otros ingresos referente a pérdidas generada producto del diferencial cambiario en los instrumentos de la cartera del Fondo de Jubilaciones.
A10: Pérdida realizada en instrumentos financieros
A11: Cuenta Contable | B11: Cuenta | D11: Moneda | E11: Mensual | F11: Acumulado
B12: Al valor razonable con cambios en otro resultado integral | E12: =SUM(E13:E14) -> 0 | F12: =SUM(F13:F14) -> 2087675594
A13: 410.04.01.00.00 | B13: Pérdida Ministerio de Hacienda (UD) | D13: UDES | E13: 0 | F13: 2087675594
A16: Cuenta Contable | B16: Cuenta | D16: Moneda | E16: Mensual | F16: Acumulado
B17: Efectivo y Equivalentes de Efectivo | E17: =SUM(E18:E20) -> 1381657.33 | F17: =SUM(F18:F20) -> 77405141.44
A18: 410.04.10.01.00.2.00.01 | B18: Cuentas corrientes | D18: Dólares | E18: 1381657.33 | F18: 77405141.44
A19: 410.04.10.01.00.2.00.02 | B19: Sobre equivalentes de efectivo | D19: Dólares | E19: 0 | F19: 0
A20: 410.04.10.01.00.2.00.03 | B20: Reportos | D20: Dólares | E20: 0 | F20: 0
B22: Inversiones en instrumentos financieros | E22: =SUM(E23:E28) -> 880235681.4 | F22: =SUM(F23:F28) -> 1.479111472e+10
A23: 410.04.10.02.01.2.00 | B23: Al valor razonable con cambios en otro resultado integral $ | D23: Dólares | E23: 778712223.2 | F23: 1.224083082e+10
A24: 410.04.10.02.02.2.00 | B24: Al valor razonable con cambios en resultados $ | D24: Dólares | E24: 0 | F24: 0
A25: 410.04.10.02.03.2.00 | B25: Al costo amortizado $ | D25: Dólares | E25: 96003735.23 | F25: 1723694756
A26: 410.04.10.02.01.4.00 | B26: Al valor razonable con cambios en otro resultado integral (UD) | D26: UDES | E26: 494371.75 | F26: 869041.98
A27: 410.04.10.02.02.4.00 | B27: Al valor razonable con cambios en resultados (UD) | D27: UDES | E27: 0 | F27: 0
A28: 410.04.10.02.03.4.00 | B28: Al costo amortizado (UD) | D28: UDES | E28: 5025351.18 | F28: 825720110.4
B30: Cuentas, Productos y Dividendos por cobrar | E30: =SUM(E31:E38) -> 0.12 | F30: =SUM(F31:F38) -> 22413.01
A31: 410.04.10.03.00.2.00 | B31: Al valor razonable con cambios en otro resultado integral $ | D31: Dólares | E31: 0 | F31: 0
A32: 410.04.10.03.00.2.01 | B32: Al valor razonable con cambios en resultados $ | D32: Dólares | E32: 0 | F32: 0
A33: 410.04.10.03.00.2.02 | B33: Al costo amortizado $ | D33: Dólares | E33: 0 | F33: 0
A34: 410.04.10.03.00.2.03 | B34: Ganancia del Impuesto sobre la renta por cobrar $ | D34: Dólares | E34: 0.12 | F34: 22413.01
A35: 410.04.10.03.00.4.00 | B35: Al valor razonable con cambios en otros resultados integral (UD) | D35: UDES | E35: 0 | F35: 0
A36: 410.04.10.03.00.4.01 | B36: Al valor razonable con cambios en resultados (UD) | D36: UDES | E36: 0 | F36: 0
A37: 410.04.10.03.00.4.02 | B37: Al costo amortizado (UD) | D37: UDES | E37: 0 | F37: 0
A38: 410.04.10.03.00.4.03 | B38: Ganancia del Impuesto sobre la renta por cobrar (UD) | D38: UDES | E38: 0 | F38: 0
A50: Interpretación Gráfica
A51: Esta nota se complementa con la nota N° 3

Sheet Nota 10
B2: Nota 10:
B3: Gasto por estimación de Deterioro
B5: =+'Nota 8'!B5:E5 -> al 31 de Octubre de 2020
B8: Comprende los movimientos de la estimación de deterioro en activos sobre los instrumentos financieros, de cuentas, productos, dividendos y aportes por cobrar.
A11: Cuenta Contable | B11: Cuenta | D11: Moneda | E11: Mensual | F11: Acumulado
A12: 411.01.01.00.00.1.00.01 | B12: Al valor razonable con cambios en otro resultado integral | D12: Colones | E12: 3089066.35 | F12: 143558897.1
A13: 411.01.01.00.00.2.00.01 | B13: Al valor razonable con cambios en otro resultado integral | D13: Dólares | E13: 759845.51 | F13: 92955428.36
A14: 411.01.01.00.00.4.00.01 | B14: Al valor razonable con cambios en otro resultado integral | D14: UDES | E14: 167486.59 | F14: 1516837.39
B15: Total | E15: =SUM(E12:E14) -> 4016398.45 | F15: =SUM(F12:F14) -> 238031162.9
A17: Cuenta Contable | B17: Cuenta | D17: Moneda | E17: Mensual | F17: Acumulado
A18: 411.01.02.00.00.1.00.01 | B18: Al costo amortizado ¢ | D18: Colones | E18: 1644286.23 | F18: 22717421.42
A19: 411.01.02.00.00.2.00.01 | B19: Al costo amortizado $ | D19: Dólares | E19: 3086557.47 | F19: 28239269.22
A20: 411.01.02.00.00.4.00.01 | B20: Al costo amortizado (UD) | D20: UDES | E20: 896569.19 | F20: 63520736.99
B21: Total | E21: =SUM(E18:E20) -> 5627412.89 | F21: =SUM(F18:F20) -> 114477427.6

Sheet Nota 11
B2: Nota 11:
B3: GASTOS GENERALES
B5: al 31 de Octubre de 2020
B8: Esta cuenta agrupa varias partidas, las cuales se describen a continuación:
A11: Cuenta Contable | B11: GASTOS GENERALES | D11: Moneda | F11: Mensual | G11: Acumulado
A13: 414.02.07.00.00.1 | B13: Servicios profesionales | D13: Colón | F13: 0 | G13: 0
A14: 414.02.08.00.00.1 | B14: Servicios bancarios ¢ | D14: Colón | F14: 54193.28 | G14: 633537.93
A15: 414.02.09.00.00.1 | B15: Cotización Seguro de enfermedad y maternidad | D15: Colón | F15: 599332941.6 | G15: 5953231720
A16: 414.02.14.00.00.1.00 | B16: Gastos diversos ¢ | D16: Colón | F16: 332766.91 | G16: 1566944.83
A17: 414.02.08.00.00.2 | B17: Servicios bancarios $ | D17: Dólar | F17: 6072 | G17: 1223535.74
A18: 414.02.14.00.00.2.00 | B18: Gastos diversos $ | D18: Dólar | F18: 71359.93 | G18: 24326813
A19: 414.02.14.00.00.4.00 | B19: Gastos diversos (UD) | D19: Udes | F19: 0 | G19: 143300.52
B21: TOTAL DE GASTOS GENERALES | F21: =SUM(F13:F19) -> 599797333.7 | G21: =SUM(G13:G19) -> 5981125852
B23: Gastos por servicios bancarios:
B24: Corresponde a gastos por comisiones bancarias cobradas por el Banco Nacional , lo anterior a raíz de conclusión “Convenio Institucional entre el Poder Judicial y la referida Entidad Bancaria”, cuyo objeto consistía en que el Poder Judicial aceptaba realizar una serie de transacciones bancarias con el Banco Nacional, a efecto de recibir un trato preferencial en algunos servicios bancarios, como lo fueron: exoneración del pago de cualquier tipo de comisión (transferencias electrónicas, giros bancarios, emisión de estados de cuenta, transacciones “SINPE”, transferencias entre cuentas del Poder Judicial y el Fondo de Jubilaciones y Pensiones), dichos gastos son del conocimiento de la Dirección Ejecutiva, según oficios DGBI-SML-25-2016, 2232-DE-2016 y 2342-DE-2016.
B26: Cotización Seguro de Enfermedad y Maternidad:
B27: Carga social en la que incurre el Fondo como Patrono, con la Caja Costarricense del Seguro Social, por concepto de Enfermedad y Maternidad, correspondiente al 8.75% sobre las jubilaciones y pensiones canceladas.
B29: Gastos diversos
B30: Corresponde a diversos ajustes relacionados principalmente con las inversiones y cuentas relacionadas.

Sheet Nota 12
B2: Nota 12:
B3: Cuentas Corrientes y de Ahorro
B5: =+'Nota 11'!B5:F5 -> al 31 de Octubre de 2020
B8: El saldo en cuentas corrientes bancarias que mantiene el Fondo de Jubilaciones en colones y en dólares americanos son los siguientes:
A10: Cuenta Contable | B10: CUENTAS CORRIENTES Y DE AHORRO PROV. PARA PENSIONES EN CURSO DE PAGO | D10: TOTAL ¢ | F10: TIPO DE CAMBIO | H10: TOTAL $
A12: 110.02.01.01.00.1.00.01 | B12: Banco Nacional de C.R. Cta 1234-0 | D12: 99000.02
A13: 110.02.01.01.00.1.00.02 | B13: Banco de Costa Rica Cta 229-32-9 | D13: 6542065707
A14: 110.02.01.01.00.1.00.03 | B14: Banco de Costa Rica Cta 174961-7 | D14: 0
A15: 110.02.01.01.00.1.00.04 | B15: Banco Popular Cta 1019277-0 | D15: 0
A16: 110.02.01.01.00.1.00.05 | B16: Banco Nacional de C.R. 2413-8 | D16: 0
A17: 110.02.01.01.00.1.00.06 | B17: Banco de Costa Rica 349803-4 | D17: 0
A18: 110.02.01.01.00.1.00.07 | B18: Banco de Costa Rica 349824-7 | D18: 0
A19: 110.02.01.01.00.2.00.01 | B19: Banco de Costa Rica Cta. 112247-9 $ | D19: 73606010.03 | F19: 609.96 | H19: =+D19/F19 -> 120673.5032
A20: 110.02.01.01.00.2.00.02 | B20: Banco Nacional de C.R. Cta 601227-7 $ | D20: 26999190.15 | F20: =+F19 -> 609.96 | H20: =+D20/F20 -> 44263.87001
A21: 110.02.01.01.00.2.00.03 | B21: Banco Popular Cta 1914-1 $ | D21: 0 | H21: 0
B23: TOTAL EN CUENTAS CORRIENTES Y DE AHORRO | D23: =SUM(D12:D21) -> 6642769908 | H23: =SUM(H19:H21) -> 164937.3732
B25: Nota:
B26: Los documentos pendientes de asocies y aprobaciones, se informaron a los Subprocesos correspondientes para su registro, y así el debido seguimiento.

Sheet Nota 13
B2: Nota 13:
B3: Inversiones en Instrumentos Financieros
B5: =+'Nota 12'!B5:H5 -> al 31 de Octubre de 2020
B8: Dicho rubro resume los diferentes movimientos de inversiones en colones y dólares de acuerdo al modelo de negocio considerando costo de adquisición (Valor Facial + Primas – Descuentos).
A10: Cuenta Contable | B10: Al valor razonable con cambios en otros resultados integral | D10: Colones | E10: Dólares | F10: Udes | G10: Total
A11: 120.01.00.00.00
B12: Valor de Adquisición | D12: 3.571347046e+11 | E12: 8.36853477e+10 | F12: 9702294880 | G12: =SUM(D12:F12) -> 4.505223472e+11
B13: (Amortización de principal) | D13: 0 | E13: 0 | F13: 0 | G13: =SUM(D13:F13) -> 0
B14: (Amortización de Primas) | D14: -5030517007 | E14: -115656461.4 | F14: -205759113.6 | G14: -5351932582
B15: Amortización de Descuentos | D15: 508720854.7 | E15: 205430868.3 | F15: 0 | G15: 714151723
B16: Ajuste por valuación | D16: 1.413513909e+10 | E16: -6517830572 | F16: -483416280.8 | G16: =SUM(D16:F16) -> 7133892232
B17: Total | D17: =SUM(D12:D16) -> 3.667480476e+11 | E17: =SUM(E12:E16) -> 7.725729153e+10 | F17: =SUM(F12:F16) -> 9013119485 | G17: =SUM(G12:G16) -> 4.530184586e+11
A19: Cuenta Contable | B19: Al valor razonable con cambios en resultados | D19: Colones | E19: Dólares | F19: Udes | G19: Total
A20: 120.02.00.00.00
B21: Valor de Adquisición
B22: Total | D22: 0 | E22: 0 | F22: 0 | G22: 0
A24: Cuenta Contable | B24: Al costo amortizado | D24: Colones | E24: Dólares | F24: Udes | G24: Total
A25: 120.03.00.00.00
B26: Valor de Adquisición | D26: 8.559635969e+10 | E26: 1.0488963e+10 | F26: 6.430021222e+10 | G26: =SUM(D26:F26) -> 1.603855349e+11
B27: (Amortización de principal) | D27: 0 | E27: 0 | F27: 0 | G27: =SUM(D27:F27) -> 0
B28: (Amortización de Primas) | D28: -119259358.6 | E28: 0 | F28: -2315759314 | G28: -2435018672
B29: Amortización de Descuentos | D29: 7472018.41 | E29: 0 | F29: 0 | G29: 7472018.41
B30: (Estimación por deterioro) | D30: -19882833.68 | E30: -28239269.23 | F30: -8736126.26 | G30: -56858229.17
B31: Total | D31: =SUM(D26:D30) -> 8.546468951e+10 | E31: =SUM(E26:E30) -> 10460723726 | F31: =SUM(F26:F30) -> 6.197571678e+10 | G31: =SUM(G26:G30) -> 1.5790113e+11
B33: Resumen | D33: Colones | E33: Dólares | F33: Udes | G33: Total
B34: Al valor razonable con cambios en otros resultados integral | D34: 3.667480476e+11 | E34: 7.725729153e+10 | F34: 9013119485 | G34: =SUM(D34:F34) -> 4.530184586e+11
B35: Al valor razonable con cambios en resultados | D35: 0 | E35: 0 | F35: 0 | G35: =SUM(D35:F35) -> 0
B36: Al costo amortizado | D36: 8.546468951e+10 | E36: 10460723726 | F36: 6.197571678e+10 | G36: 1.5790113e+11
D38: =+D34+D35+D36 -> 4.522127371e+11 | E38: =+E34+E35+E36 -> 8.771801526e+10 | F38: =+F34+F35+F36 -> 7.098883626e+10
B46: Interpretación Gráfica

Sheet Nota 14
B2: Nota 14:
B3: Productos y dividendos por cobrar asociados a inversiones en instrumentos financieros
B5: =+'Nota 12'!B5:H5 -> al 31 de Octubre de 2020
B8: La cuenta se conforma por el registro de:
B10: · La parte proporcional de los intereses, rendimientos y dividendos por las inversiones, que fueron adquiridas por el Fondo.
B11: · Además comprende los registros de aquellas inversiones que a su fecha de vencimiento deben ser reclasificados según lo requerido por el ente Rector a las cuentas de vencidos y restringidos.
A14: Cuenta Contable | B14: Al valor razonable con cambios en otros resultados integral | D14: Colones | E14: Dólares | F14: Udes | G14: Total
A15: 120.07.01.01.00
B16: Intereses | D16: 6822818367 | E16: 639758351.5 | F16: 30984672.23 | G16: =SUM(D16:F16) -> 7493561391
B17: Rendimientos | D17: 0 | E17: 0 | F17: 0 | G17: =SUM(D17:F17) -> 0
B18: Dividendos | D18: 0 | E18: 2799106.36 | F18: 0 | G18: 2799106.36
B19: Total | D19: =SUM(D16:D18) -> 6822818367 | E19: =SUM(E16:E18) -> 642557457.9 | F19: 30984672.23 | G19: 7496360497
A21: Cuenta Contable | B21: Al valor razonable con cambios en resultados | D21: Colones | E21: Dólares | F21: Udes | G21: Total
A22: 120.07.01.02.00
B23: Intereses | D23: 0 | E23: 0 | F23: 0 | G23: 0
B24: Rendimientos | D24: 0 | E24: 0 | F24: 0 | G24: 0
B25: Dividendos | D25: 0 | E25: 0 | F25: 0 | G25: 0
B26: Total | D26: 0 | E26: 0 | F26: 0 | G26: 0
A28: Cuenta Contable | B28: Al costo amortizado | D28: Colones | E28: Dólares | F28: Udes | G28: Total
A29: 120.07.01.03.00
B30: Intereses | D30: 1232136919 | E30: 149473076.8 | F30: 201937819.5 | G30: =SUM(D30:F30) -> 1583547815
B31: Rendimientos | D31: 0 | E31: 0 | F31: 0 | G31: =SUM(D31:F31) -> 0
B32: Dividendos | D32: 0 | E32: 122632177.4 | F32: - | G32: 122632177.4
B33: Total | D33: =SUM(D30:D32) -> 1232136919 | E33: =SUM(E30:E32) -> 272105254.3 | F33: =SUM(F30:F32) -> 201937819.5 | G33: =SUM(G30:G32) -> 1706179993
B36: Resumen | D36: Colones | E36: Dólares | F36: Udes | G36: Total
B37: Al valor razonable con cambios en otros resultados integral | D37: 6822818367 | E37: 642557457.9 | F37: 30984672.23 | G37: =SUM(D37:F37) -> 7496360497
B38: Al valor razonable con cambios en resultados | D38: 0 | E38: 0 | F38: 0 | G38: =SUM(D38:F38) -> 0
B39: Al costo amortizado | D39: 1232136919 | E39: 272105254.3 | F39: 201937819.5 | G39: =SUM(D39:F39) -> 1706179993
D41: =SUM(D37:D40) -> 8054955286 | E41: =SUM(E37:E40) -> 914662712.2 | F41: 232922491.8 | G41: =SUM(G37:G40) -> 9202540489
A45: Interpretación Gráfica

Sheet Nota 15
B2: Nota 15:
B3: CUENTAS POR COBRAR
B5: =+'Nota 13'!B5:H5 -> al 31 de Octubre de 2020
B7: En esta cuenta se registran aquellas partidas que debe recuperar el Fondo y se conforma por los siguientes conceptos:
A9: Cuenta Contable | B9: Cuentas por Cobrar | D9: Monto
A11: 130.01.00.00.00 | B11: Impuesto Sobre La Renta Por Cobrar | D11: 835267329.8
A12: 130.03.01.00.00 | B12: Sumas pendientes de cobrar otras | D12: 24222.16
B14: Saldo: | D14: =SUM(D11:D13) -> 835291551.9
B16: 1) Corresponden aquellas sumas que debe recuperar el Régimen por concepto de exención del 8% del impuesto sobre la renta de los títulos valores, que por su situación particular, no es posible cobrarlos inmediatamente con el vencimiento de los cupones. El Subproceso de Ingresos indica lo siguiente con el seguimiento: (1) La Presidencia de la Corte remitió un oficio a Casa Presidencial para los años 2004 y 2005. La Dirección Ejecutiva con oficio 4167-DE-2019 del 11/09/2019 indicó al Director del Despacho de la Presidencia: "Traslado copia de oficio N° 737-TI-2019 de fecha 9 de setiembre en curso, referente a la devolución del impuesto sobre renta de vieja data, a efecto de que se nos informe si se ha tenido algún avance respecto a las conversaciones con el Presidente de la República, encomendadas por el Consejo Superior en sesión N° 84-18 celebrada el 25 de setiembre de 2018, artículo XV". Al respecto, la Presidencia de la Corte en el mes de setiembre de 2019, remite consulta por correo electrónico de fecha a Casa Presidencial el cual cita: "Siguiendo instrucciones superiores y en referencia al oficio adjunto, el cual fue recibido por el Ministerio de la Presidencia el 4 de abril de 2019, me permito consultarle si existe alguna respuesta al respecto." Se mantiene el seguimiento del caso. (2) La Presidencia de la Corte remitió un oficio a Grandes Contribuyentes para lo del periodo 2018. La Dirección Ejecutiva con oficio 4669-DE-2019 del 04 de octubre de 2019 remite a Financiero Contable el acuerdo del Consejo Superior de Sesión 80-19 del 12 de setiembre de 2019, mediante el cual se acordó: "...) Tener por recibido el oficio N° 4040-DE-2019 del 5 de setiembre de 2019, suscrito por la máster Ana Eugenia Romero Jenkins, Directora Ejecutiva, relacionado con las acciones legales procedentes en relación a la resolución DGCN-133-2019, emitida por la señora Patricia Castillo Vargas, directora de la Dirección de Grandes Contribuyentes Nacionales. 2.) Deberá el Departamento de Financiero Contable alertar a la Junta Administradora del Fondo de Pensiones del Poder Judicial, en el informe de traspaso de la Comisión del Fondo de Jubilaciones y Pensiones del Poder Judicial, sobre la situación expuesta en el criterio jurídico N° DJ-2361-2019 de fecha 3 de setiembre de 2019, suscrito por el máster Rodrigo Alberto Campos Hidalgo, Director Jurídico..." (3) El Subproceso de Ingresos realizó las gestiones correspondientes para la devolución de los correspondiente de Fondos Inmobiliarios. De lo anterior, se solicitará a dicho Subproceso de Ingresos que es el encargado de dichas cuentas el seguimiento del mismo. El cual indica que, en cuanto al criterio emitido por la firma Facio y Cañas que, con oficio 916-TI/UCC-2018 del 02 de octubre de 2018 se hizo del conocimiento de la Dirección Ejecutiva, de lo cual esa Dirección con oficio 4855-DE-2018 del 10 de octubre de 2018, indicó que se debe estar a espera del resultado del Recurso de Apelación contra la resolución N° DGCN-097-2018 de fecha 31 de mayo de 2018, en la cual se denegó la exención del Impuesto sobre la Renta en los rendimientos generados en operaciones de recompras o reportos realizadas por medio de una bolsa de valores y operaciones con fondos de inversión y fondos inmobiliarios.

Sheet Nota 16
B2: Nota 16:
B3: APORTES POR COBRAR
B5: Al 31 de octubre de 2020
B8: Corresponden a los aporte de los trabajadores, del patrono, del estado y jubilados-Pensionados que se detallan a continuación:
A10: Cuenta Contable | B10: Nota | D10: Sub-nota | F10: APORTES POR COBRAR | H10: Detalle | J10: Total
A12: 150.01.00.00.00 | B12: 15.1 | F12: Aporte por cobrar a los trabajadores | J12: =SUM(H13:H15) -> 5334913333
D13: 15.1.1 | F13: Aporte Ordinario | H13: 570039.33
D14: 15.1.2 | F14: Aporte Ordinario S .Escolar | H14: 2316117612
D15: 15.1.3 | F15: Aporte Reconocimiento de tiempo servido | H15: 3018225682
A16: 150.02.00.00.00 | B16: 15.2 | F16: Aportes por cobrar al Patrono | J16: =SUM(H17:H18) -> 4155145220
D17: 15.2.1 | F17: Aportes Por Cobrar Poder Jud.-Patrono | H17: 1596215233
D18: 15.2.2 | F18: Apor. x Cobrar Poder Jud.-Patrono (S.E) | H18: 2558929987
A19: 150.03.00.00.00 | B19: 15.3 | F19: Aportes por cobrar al Estado | J19: =SUM(H20:H21) -> 407516745.3
D20: 15.3.1 | F20: Aportes Por Cobrar Poder Jud.-Estado | H20: 156674222.9
D21: 15.3.2 | F21: Apor. x Cobrar Poder Jud.-Estado (S.E) | H21: 250842522.4
A22: 150.04.00.00.00 | B22: 15.4 | F22: Otros aportes por cobrar | J22: =SUM(H23:H26) -> 196604041
D23: 15.4.1 | F23: O. Aportes Por Cobrar Jubilados | H23: 170915005.7
D24: 15.4.2 | F24: O. Aportes Por Cobrar Pensionados | H24: 23901709.57
D25: 15.4.3 | F25: O. Aportes Por Cobrar E. Deductoras | H25: 1787325.76
F28: TOTAL | J28: =SUM(J12:J26) -> 1.009417934e+10
B32: 15.1 Aportes por cobrar a los trabajadores
B33: Este grupo contempla las sumas por cobrar proveniente de la estimación mensual del salario escolar a los servidores activos del Poder Judicial. Adicionalmente, incluye los aportes por cobrar de las obligaciones por reconocimiento de tiempo servido fuera del Poder Judicial aprobado por el Consejo Superior de la Corte Suprema de Justicia, a servidores judiciales activos, para efectos de jubilación.
B35: 15.2 Aportes por cobrar al Patrono
B36: Se compone de las sumas pendientes de cobrar por aportes que recibe el Fondo de Jubilaciones y Pensiones del Estado en su calidad de patrono.
B38: 15.3 Aportes por cobrar al Estado
B39: Este grupo lo componen las sumas pendientes de cobrar por aportes al Estado que recibe el Fondo de Jubilaciones y Pensiones.
B40: 15.4 Otros aportes por cobrar
B41: Sumas canceladas de más a Jubilados y Pensionados
B43: • Por fallecimiento: Dineros girados de más a jubilados y pensionados fallecidos, donde la fecha de su defunción no fue conocida oportunamente. Es importante anotar que en estos casos el Macroproceso Financiero Contable realiza como uno de los mecanismos alternativos para la recuperación de las sumas giradas en demasía, una “Acta de autorización de rebajo”, mediante la cual los beneficiarios al Fondo de Socorro Mutuo designados por el jubilado fallecido, autorizan voluntariamente la deducción de ese beneficio, de las sumas pagadas de más por el Fondo de Jubilaciones. Dicha deducción se realiza solo con el consentimiento de los causahabientes, los cuales acceden a honrar las obligaciones del jubilado fallecido. Para los casos en donde el procedimiento no ha resultado factible, se analiza el caso y se eleva a conocimiento de las instancias correspondientes.
B45: • Estudios por sumas canceladas de más a jubilados y pensionados: Además se registran las sumas canceladas de más por conceptos diversos, entre los cuales los más relevantes son los montos pagados de más a jubilados que en determinado momento ejercieron un puesto en el Sector Público percibiendo otro sueldo del Estado, de sus bancos, de sus instituciones, de las municipalidades, de las juntas de educación y de las empresas de economía mixta, a los cuales se les suspendió el beneficio del Fondo de Jubilaciones tardíamente, girándoseles recursos en demasía que no les correspondía, de conformidad con lo que reza el artículo 234 de la Ley Orgánica del Poder Judicial.
B47: Aportes Reconocimiento de Tiempo Servido
B48: Corresponde a las contribuciones por cobrar, como resultado del reconocimiento de tiempo servido fuera del Poder Judicial aprobado por el Consejo Superior de la Corte Suprema de Justicia, a servidores judiciales activos y jubilados o pensionados que asumen la deuda de un ex jubilado, según el artículo 231 de la Ley Orgánica del Poder Judicial.
B50: Otros aportes por cobrar a Entidades Deductoras
B51: Corresponde a cuentas por cobrar a las entidades deductoras por conceptos diversos entre los cuales los más relevantes son producto de:
B53: · La anulación de pagos por concepto de asignaciones por exclusión de beneficiarios del Fondo (fallecimiento, mayoría de edad, matrimonio o cuando el beneficiario se encuentra laborando para otra Institución del Estado mientras recibía el beneficio de su jubilación por parte de este Fondo)
B55: · Diferencias en la aplicación de ajustes en los montos de las jubilaciones y pensiones que corresponden a deducciones en planilla que ya han sido giradas a dichas Entidades, cuando el Fondo se entera del suceso.

Sheet Nota 17
B2: Nota 17:
B3: INTANGIBLES
B5: =+'Nota 16'!B5:J5 -> Al 31 de octubre de 2020
B7: Detalle | D7: Monto | F7: Amortización | H7: Total
B8: Sistema inversiones "Internet Systems Development Insyde S.A" | D8: 7618670 | F8: -7618670 | H8: 0
B11: Nota:
B12: Corresponde al registro de la compra del Sistema de Inversiones a la empresa Internet Systems Development Insyde S.A. con un valor de $14,750.00, valorado al tipo de cambio de la fecha de adquisición del activo (15 de agosto de 2007) de ¢516.52, para un total de ¢7,618,670. A dicho monto se descuenta la amortización acumulada al cierre del presente mes que asciende a ¢7,618,670 para un activo neto de ¢0.00. La vida útil del sistema en mención es de 5 años y considerando que fue registrado en setiembre del 2007 se encuentra depreciado en su totalidad, no obstante, a la fecha de este informe se encuentra en funcionamiento. En el periodo comprendido entre el 15 de julio a 12 de diciembre del 2011 la Dirección de Tecnología de Información realizó mejoras al sistema de Inversiones por la suma de ¢1.673.895. Lo anterior, de acuerdo con la información suministrada por la Dirección de Tecnología de la Información, mediante correo electrónico del 27 de abril del 2017 y oficio 1635-DTI-2017, dicho monto se encuentra registrado actualmente en los registros contables del Poder Judicial por igual suma. Con oficio 425-SC-2015 de 26 de agosto del 2015, se realizó la consulta a la Superintendencia de Pensiones (SUPEN) sobre la forma de registro contable de la información suministrada por la Dirección de Tecnología de Información, en virtud de que, en el Manual de Cuentas para el Régimen de Capitalización Colectiva emitido por dicha Superintendencia, no se observa alguna cuenta contable para el registro de la reevaluación de activos intangibles. La SUPEN ante la consulta realizada, indicó lo siguiente: “[…] conforme lo establecido en las Normas internacionales de Información Financiera (NIIF), se le comunica que no existe forma alguna de atribuir costo a un activo intangible luego del final de su vida útil: aunque esté en operación y generando beneficios, su valor en libros deberá seguir siendo cero…”

Sheet Nota 18
C2: Nota 18:
C4: Retenciones A Pensionados
C6: =+'Nota 17'!B5 -> Al 31 de octubre de 2020
C9: Comprende las retenciones mensuales aplicadas en la planilla de jubilados y pensionados judiciales correspondientes a entidades deductoras, que realiza el Fondo a sus distintos beneficiarios, las cuales en el caso de la retención del impuesto sobre la renta y la cuota obrera por enfermedad y maternidad son honradas hasta el mes siguiente de su aplicación.
B12: Cuenta Contable | C12: RETENCIONES A JUBILADOS Y PENSIONADOS | E12: TOTAL
B14: 211.01.01.00.00.1.00.01 | C14: Impuesto Sobre La Renta | E14: 618753751
B15: 211.01.02.00.00.1.00.01 | C15: Caja Costarricense Seguro Social | E15: 342475968.2
C17: TOTAL DE RETENCIONES A JUBILADOS Y PENSIONADOS | E17: =SUM(E14:E16) -> 961229719.2

Sheet Nota 19
B2: Nota 19:
B3: Obligaciones Por Liquidar Empleados y Exempleados
B5: =+'Nota 18'!C6 -> Al 31 de octubre de 2020
B7: En esta cuenta se registran sumas sujetas a devolución por parte del Fondo de Jubilaciones y Pensiones que corresponden a pagos recibidos de más en la cancelación de obligaciones por cobrar por reconocimiento de tiempo servido fuera del Poder Judicial, derivados por el traslado de cuotas que realiza la Caja Costarricense del Seguro Social u otro régimen de pensiones hacia el Fondo de Jubilaciones, las cuales deben abonarse a las cuentas de los servidores judiciales, sin embargo, algunos de esos traslados ingresan cuando ya el servidor ha cancelado la deuda, por lo que se genera un pasivo a favor de éste.
B9: OBLIGACIONES POR R.T.S.F.P.J. | C9: TOTAL
B11: ONGJ | C11: 3722763.78
B12: TGJ | C12: 67742.62
B13: RVH | C13: 55036.17
B14: ARL | C14: 14340.59
B15: BSD | C15: 239605.73
B16: BVL | C16: 1398109.71
B17: BGL | C17: 10708507.57
B18: RPE | C18: 12194289.87
B19: GFE | C19: 40324.53
B20: RRE | C20: 81585.56
B21: RRE | C21: 57914.16
B22: LRA | C22: 152900.06
B23: PMP | C23: 72697.24
B24: RAW | C24: 116706.62
B25: VCA | C25: 54602.09
B26: MMF | C26: 45794.04
B27: JMW | C27: 50627.61
B28: CSJ | C28: 73804.77
B29: MCL | C29: 6925.7
B30: VBE | C30: 13274.11
B31: VCA | C31: 54602.09
B32: MMF | C32: 52949.36
B33: JMW | C33: 50627.61
B34: CSJ | C34: 71676.6
B36: OBLIGACIONES POR R.T.S.F.P.J. | C36: =SUM(C11:C34) -> 29397408.19
B38: Obligaciones por aportes obrero-patronal | C38: TOTAL
B39: C.C.S.S. | C39: 48330.85
B40: Obligaciones por aportes obrero-patronal | C40: =SUM(C39) -> 48330.85
B41: Total General | C41: =+C36+C40 -> 29445739.04
B44: OBLIGACIONES POR R.T.S.F.P.J.
B45: Con respecto al caso de ONGJ, se ha dado el seguimiento respectivo y el Subproceso de Ingresos indicó lo siguiente: registrado en febrero 19 producto de devolución de Traslado de cuotas de la CCSS por RTS, cuya deuda fue reversada porque fue dejada según lo ordenado por Consejo Superiorsesión 14-19 artículo LXIV del 19 de febrero de 2019, sin embargo se debe esperar a que ese Consejo defina a cuanto equivale el monto a deducido por ese concepto y analice informe de Gestión Humana en donde se calcula dicho tiempo. Mediante correo electrónico del 2 de julio de 2019 el Subproceso de Ingresos informa: "Con acuerdo del Consejo Superior de sesión 32-19 artículo XII, del 08 de mayo de 2019, se acordó: ": Solicitar criterio a la Dirección Jurídica, respecto a la procedencia de acreditar los recursos trasladados por la Caja Costarricense de Seguro Social (CCSS) al Fondo de Jubilaciones y Pensiones del Poder Judicial a nombre de los servidores.” De lo anterior, el Subproceso de Ingresos mantuvo una reunión con la Dirección Jurídica el 3 de octubre de 2019 en la cual acordaron que dicha Dirección remitiría el criterio jurídico. Con correo del 13 de abril 2020 el Proceso de Inversiones indica que se le consulto a la Dirección Juridica el pasado 12 de marzo de 2020 sobre este tema indicando que solicitaron una prórroga de dos meses al Consejo Superior. Con correo del 12 de junio 2020 el Proceso de Inversiones indica que la Dirección Jurídica ha estudiado el tema y ya cuenta con un borrador de criterio que se ha estado revisando y se ha trabajado en la debida fundamentación del análisis, así como en la depuración de sus conclusiones; de manera que, muy pronto se podrá comunicar.
B48: El otro monto importante de 24,554,853 corresponden a registros de Julio 2020.
B50: Obligaciones por aportes obrero-patronal
B52: Mediante correo electrónico del 11de agosto 2020, el Proceso de Inversiones indica que el registro corresponde a una suma cancelada de más por la CCSS.
B53: La CCSS ya había abonado a la cuenta por cobrar, no obstante, volvió a cancelar toda la cuenta por cobrar, razón por la cuál se envía lo depositado de más a la cuenta por pagar de la CCSS.

Sheet Nota 20
B2: Nota 20:
B4: Obligaciones Transitorias por Liquidar
B6: =+'Nota 19'!B5:B5 -> Al 31 de octubre de 2020
B9: En esta se registran sumas transitorias que deben liquidarse oportunamente y se compone de los siguientes rubros:
A11: Cuenta Contable | B11: Obligaciones Transitorias por Liquidar | D11: Saldo
A12: 211.07.01.00.00.1.00.01 | B12: Cuotas para otros regímenes | D12: 0
A13: 211.07.03.00.00.1.00.01 | B13: Benef. no retirados y por fallecimiento | D13: 56088362.01
A14: 211.07.03.00.00.1.01.01 | B14: Sumas en transito por aclarar ¢ | D14: 5022131.76
A15: 211.07.03.00.00.1.02.04 | B15: Institucione Financieras Banco Popular ¢ | D15: 498197.34
A16: 211.07.03.00.00.1.03.03 | B16: Instituciones Gubernamentales-Caja Costarricense Seguro Social | D16: 3804819.36
A17: 211.07.03.00.00.1.04.01 | B17: Anejud | D17: 148458.06
A18: 211.07.03.00.00.1.04.03 | B18: Otros-Errores Bancarios | D18: 4610.86
A19: 211.07.03.00.00.1.05.01 | B19: Transitoria de deducción | D19: 636240.86
A20: 211.07.03.00.00.1.06.01 | B20: * Aporte Junta Administradora FJP | D20: 3195636000
A21: 211.07.03.00.00.1.06.02 | B21: * Aporte Junta Administradora FJP - Jubilados y Pensionados | D21: 940462126.5
A22: 211.07.03.00.00.1.07.01 | B22: Intereses ganados en cta cte Junta. Adm | D22: 252312235.6
A23: 211.07.03.00.00.2.00.01 | B23: Sumas en tránsito por aclarar $ | D23: 0.01
A24: 211.07.03.00.00.2.01.04 | B24: Instituciones Financieras-Banco Popular $ | D24: 232250.73
B26: Total Obligaciones Transitorias por Liquidar | D26: =SUM(D12:D24) -> 4454845433
B28: * Nota 1: Mediante la publicación de la Ley 9544, se aplica la reforma al capítulo IV, art 239, referente a la comisión por gastos administrativos, la cual indica: " Surgirá de deducir un cinco por mil de los sueldos de que devengen los servidores judicial, así como de las jubilaciones y las pensiones a cargo del Fondo. Con estos recursos se pagarán las dietas de los miembros de la Junta Administradora, los salarios de su personal y, en general, sus gastos administrativos...", dicho aporte dio inicio a partir del 22/05/2018.
B38: Con respecto a las sumas en tránsito por aclarar el monto de ¢2,766,747 más antiguo y se encuentra en análisis por parte del Subproceso de Ingresos, el cual indicó mediante correo electrónico del 9 de setiembre 2019 que la CCSS remitió una serie de informes de inspección y se está en el análisis para identificar los montos si corresponden al FJPPJ, por cuanto informarán cuando culminen. La CCSS el 28-10-2019 según oficio SARCL-691-10-2019 remitió la lista de los informes de inspección relacionados con este rubro, de lo cual con oficio 949-TI-2019 del 04-12-2019, se solicitó a la CCSS los informes faltantes en virtud que los remitidos anteriormente no corresponden. Y el monto de ¢ 18,237.45 corresponde a ingresos mayo 2019.
B40: El monto por pagar a la Caja Costarricense del Seguro Social, obedece a:
B41: o ¢2,890,336 correspondiente a pagos dobles efectuados por dicha entidad producto de informes de inspección por cuotas canceladas de más y devolución de aportes. Lo anterior fue comunicado a la Dirección Ejecutiva mediante oficio 293-SC-2013 del 5 de julio del 2013, siendo que, dicha Dirección informó mediante oficio 5912-DE-2013 que toma nota de lo anterior.
B42: o ¢2,888 por suma pagada de más por la C.C.S.S en el informe de inspección 1238-00249-2012-I, misma que fue informada a la Dirección Ejecutiva mediante oficio 383-SC-2013 del 4 de septiembre del 2013. Siendo que dicha Dirección mediante oficio 1861-DE/AL-2012 del 16 de setiembre del 2013 informa que se toma de lo informado.
B43: o ¢13,749 la cual obedece al caso de la señora MCSV dado que no corresponde la devolución efectuada por la C.C.S.S., en virtud que la Dirección Ejecutiva mediante oficio 555-DE/CA-2012 del 7 de junio del 2013, remitió resolución 3506-2012 del 7 de junio del 2012 en la cual ordena el archivo definitivo de la deuda por no proceder.
B44: o ¢843,454 corresponde a la devolución de cuotas obrero-patronales según resolución emitida por la C.C.S.S, mediante Informe de Inspección de dicha entidad No. 1238-00079-2015-I del 26 de enero de 2015.
B45: o ¢9.022 corresponde a la devolución de cuotas obrero-patronales según resolución emitida por la C.C.S.S, mediante Informe de Inspección de dicha entidad No. 1238-00274-2015-I del 09 de febrero de 2015.
B47: o El monto de ¢ 37,002, el Subproceso de Ingresos indica mediante correo electrónico del 12/08/2019 que se encuentra en proceso de verificar la naturaleza de los recursos, por lo que se encuentra en estudio
B48: o El monto de ¢ 8,368 con oficio SARCL-065-01-2019 la CCSS canceló del informe de inspección 1235-00902-2018-I el monto, sin embargo ya había sido cancelado mediante informe de inspección SARCL-0723-2018.
B50: Disminución cuenta de Aporte de Junta Administradora:
B51: A solicitud de la Junta Administradora del Fondo de Jubilaciones y Pensiones del Poder Judicial a partir de febrero 2020 se realizan traslados de los recursos a la cuenta bancaria de la Junta.
B55: Traslados contabilizados por mes:
B56: Febrero | D56: 3873684
B57: Marzo | D57: 24116334
B58: Abril | D58: 12367176.34
B59: Mayo | D59: 669683.97
B60: Junio | D60: 8121517.99
B61: Julio | D61: 4232294.69
B62: Agosto | D62: 4215434.5
B63: Setiembre | D63: 11763958.46
B64: Octubre | D64: 16548994.93
B65: Total | D65: =SUM(D56:D64) -> 85909078.88

Sheet Nota 21
B2: Nota 21:
B4: Cotización Seguro De Enfermedad y Maternidad
B6: =+'Nota 20'!B6:D6 -> Al 31 de octubre de 2020
B9: Este pasivo se conforma por la cuota patronal del 8.75% que el Fondo de Jubilaciones y Pensiones debe pagar mensualmente a la Caja Costarricense de Seguro Social (C.C.S.S.), según lo estipulado en el artículo 62 del Reglamento del Seguro Salud.
A11: Cuenta Contable | B11: Entidad | D11: Porcentaje | F11: Monto
A12: 213.03.00.00.00 | B12: Caja Costarricense del Seguro Social | D12: 0.0875 | F12: 599761595.5

Sheet Nota 22
B2: Nota 22:
B3: PROVISIONES PARA PENSIONES EN CURSO DE PAGO
B5: =+'Nota 21'!B6:F6 -> Al 31 de octubre de 2020
B7: En esta cuenta se registra la totalidad de los recursos acumulados generados de las actividades del Fondo de Jubilaciones y Pensiones provenientes en su mayoría de los aportes recibidos de las cuotas obrero patronales-estatales, así como de los intereses netos ganados en inversiones, con el fin de atender las obligaciones que se deriven de los beneficios establecidos reglamentariamente para los jubilados y pensionados actuales así como de los nuevos jubilados y pensionados.
A10: Cuenta Contable | B10: Nota | D10: Sub-nota | F10: APORTES POR COBRAR | H10: Detalle | J10: Total
A12: 214.01.01.00.00 | B12: 22.1 | F12: Recursos recibido de reservas en formación | J12: 1.287475317e+12
A13: 214.01.02.00.00 | B13: 22.2 | F13: (Menos) Pago plan de beneficios | J13: 6.713258301e+11
A14: 214.01.02.00.00.1.02.01 | D14: 22.2.1 | F14: Traslados a otros regímenes | H14: 1339667969
F16: TOTAL | J16: =+J12-J13 -> 6.161494867e+11

Sheet Nota 23
B2: Nota 23:
B4: CUENTAS DE ORDEN DEUDORAS Y ACREDORAS
B6: =+'Nota 22'!B5:J5 -> Al 31 de octubre de 2020
B9: En esta cuenta se registran los saldos de las cuentas por cobrar por concepto de reconocimiento de tiempo servido en otras dependencias o instituciones públicas, de aquellos servidores en condición de propietarios que renunciaron al Poder Judicial.
B11: Concepto | D11: Monto
B12: Cuentas por cobrar por reconocimiento de tiempo servido en otras dependencias o instituciones públicas, de aquellos servidores en condición de propietarios que renunciaron al Poder Judicial. | D12: 348918752

Sheet Nota 24
B2: Nota 24:
B4: Rendimientos Acumulados
B6: =+'Nota 22'!B5:J5 -> Al 31 de octubre de 2020
B9: En esta cuenta se registran el traslado de los rendimientos del mes anterior antes del cierre del mes actual.
B11: Mes Actual
B12: Cuenta Contable | C12: Rendimientos Acumulados | D12: Colones | E12: Dólares | F12: UDES | G12: TOTAL
B14: 313.01.00.00.00 | C14: Rendimientos devengados | D14: 3421691918 | E14: 1703002651 | F14: -1868443462 | G14: =SUM(D14:F14) -> 3256251107
B15: 313.02.00.00.00 | C15: (Traslado de recursos a la provisión para pensiones | D15: -3421691918 | E15: -1703002651 | F15: 1868443462 | G15: =SUM(D15:F15) -> -3256251107
B16: Total de Rendimientos Acumulados | G16: =SUM(G14:G15) -> 0

Sheet Nota 25
B2: Nota 25:
B4: Resultado del periodo
B6: =+'Nota 22'!B5:J5 -> Al 31 de octubre de 2020
B9: En esta cuenta se registran el resultado del periodo.
B11: Cuenta Contable | C11: Ingresos | D11: TOTAL
B12: 500.00.00.00.00 | C12: Ingresos | D12: 6060355650
B13: Total de Ingresos | D13: =SUM(D12:D12) -> 6060355650
B15: Cuenta Contable | C15: Gastos | D15: TOTAL
B16: 400.00.00.00.00 | C16: Gastos | D16: 1491058484
B17: Total de Gastos | D17: =SUM(D16:D16) -> 1491058484
B19: Total Utilidad | D19: =+D13-D17 -> 4569297166
B21: Este monto se traslada con el cierre de periodo a la cuenta de rendimientos acumulados y posteriormente el mes siguientes se traslada a la cuenta de la Provisión.

Sheet Nota 26
B2: Nota 26:
B3: Flujos de efectivo por actividades de operación
B4: Ganancia realizada en instrumentos financieros y Ganancias o pérdidas por diferencias de cambio y unidades de desarrollo
B6: =+'Nota 22'!B5:J5 -> Al 31 de octubre de 2020
B9: Corresponde a la variación de la cuentas de ingresos y gastos de las ganancias o pérdidas por diferencial cambiario y unidades de desarrollo.
B11: Cuenta Contable | C11: Ingresos | D11: TOTAL
B12: 510.04.10.00.00 | C12: Ganancia por diferencial cambiario y unidades de desarrollo | D12: 1796252778
B13: 410.04.10.00.00 | C13: Pérdida por diferencial cambiario y unidades de desarrollo | D13: 881617338.7
B14: Total | D14: =+D12-D13 -> 914635439.1

Sheet Nota 27
B2: Nota 27:
B3: Flujos de efectivo por actividades de operación
B4: Deterioro de activos financieros
B6: =+'Nota 8'!B5:E5 -> al 31 de Octubre de 2020
B9: Comprende los movimientos de la estimación de deterioro en activos sobre los instrumentos financieros, de cuentas, productos, dividendos y aportes por cobrar.
A12: Cuenta Contable | B12: Cuenta | D12: Moneda | E12: Mensual
A13: 411.01.01.00.00.1.00.01 | B13: Al valor razonable con cambios en otro resultado integral | D13: Colones | E13: 3089066.35
A14: 411.01.01.00.00.2.00.01 | B14: Al valor razonable con cambios en otro resultado integral | D14: Dólares | E14: 759845.51
A15: 411.01.01.00.00.4.00.01 | B15: Al valor razonable con cambios en otro resultado integral | D15: UDES | E15: 167486.59
B16: Total | E16: =SUM(E13:E15) -> 4016398.45
A18: Cuenta Contable | B18: Cuenta | D18: Moneda | E18: Mensual
A19: 411.01.02.00.00.1.00.01 | B19: Al costo amortizado ¢ | D19: Colones | E19: 1644286.23
A20: 411.01.02.00.00.2.00.01 | B20: Al costo amortizado $ | D20: Dólares | E20: 3086557.47
A21: 411.01.02.00.00.4.00.01 | B21: Al costo amortizado (UD) | D21: UDES | E21: 896569.19
B22: Total | E22: =SUM(E19:E21) -> 5627412.89
B23: Total General | E23: =+E16+E22 -> 9643811.34

Sheet Nota 28
B2: Nota 28:
B3: Flujos de efectivo por actividades de operación
B4: Instrumentos financieros - Al valor Razonable con cambios en el otro resultado integral
B8: =+'Nota 8'!B5:E5 -> al 31 de Octubre de 2020
B11: Comprende los movimientos efectivos correspondientes a las Inversiones al Al valor razonable con cambios en otro resultado integral
B14: Instrumentos financieros - Al valor Razonable con cambios en el otro resultado integral
B15: Instrumentos financieros - Al valor Razonable con cambios en el otro resultado integral | C15: 7499265990
B16: Mas
B17: Ajuste por deterioro de instrumentos financieros (314.02.03) | C17: 4016398.45
B18: Ajustes al Patrimonio (valuación y deterioro) | C18: 918323544.5
B19: Menos
B20: Diferencial cambiario neto del mes(positivo) | C20: -914635439.1
B21: Total | C21: =SUM(C15:C20) -> 7506970494

Sheet Nota 29
B2: Nota 29:
B3: Flujos de efectivo por actividades de operación
B4: Instrumentos financieros - Al costo amortizado
B8: =+'Nota 8'!B5:E5 -> al 31 de Octubre de 2020
B11: Comprende los movimientos efectivos correspondientes a las Inversiones al Instrumentos financieros - Al costo amortizado
B14: Instrumentos financieros - Al Costo Amortizado
B15: Instrumentos financieros - Al Costo Amortizado | C15: -1859117435
B16: Más
B17: Gasto por estimación del deterioro | C17: 5627412.89
B18: Total | C18: =SUM(C15:C17) -> -1853490022

Sheet Nota 30
B2: Nota 30:
B3: Flujos de efectivo por actividades de operación y de inversión
B4: Productos y dividendos por cobrar
B8: =+'Nota 8'!B5:E5 -> al 31 de Octubre de 2020
B11: La cuenta se conforma por el registro de:
B12: · La parte proporcional de los intereses, rendimientos y dividendos por las inversiones, que fueron adquiridas por el Fondo.
B13: · Además comprende los registros de aquellas inversiones que a su fecha de vencimiento deben ser reclasificados según lo requerido por el ente Rector a las cuentas de vencidos y restringidos.
B16: Aumentos | C16: Total
B17: Aumentos de productos y dividendos por cobrar | C17: 4755131147
B19: Disminuciones | C19: Total
B20: Disminuciones de productos y dividendos por cobrar | C20: 2399155396
C22: =+C17+C20 -> 7154286542

Sheet Nota 31
B2: Nota 31:
B3: Flujos de efectivo por actividades de operación
B4: Cuentas por cobrar
B8: =+'Nota 8'!B5:E5 -> al 31 de Octubre de 2020
B11: Partidas que debe recuperar el Fondo y se conforma por los siguientes conceptos:
B13: Cuentas por Cobrar | C13: Monto mes anterior | D13: Mes Actual | E13: Variación
B14: Impuesto Sobre La Renta Por Cobrar | C14: 1489257098 | D14: =+'Nota 15'!D11 -> 835267329.8 | E14: =+D14-C14 -> -653989767.9
B15: Sumas pendientes de cobrar otras | C15: 24222.16 | D15: =+'Nota 15'!D12 -> 24222.16 | E15: =+D15-C15 -> 0
B16: Saldo: | C16: =SUM(C14:C15) -> 1489281320 | D16: =SUM(D14:D15) -> 835291551.9 | E16: =SUM(E14:E15) -> -653989767.9

Sheet Nota 32
B2: Nota 32:
B3: Flujos de efectivo por actividades de operación
B4: Aportes por cobrar
B8: =+'Nota 8'!B5:E5 -> al 31 de Octubre de 2020
B12: Corresponden a los aporte de los trabajadores, del patrono, del estado y jubilados-Pensionados que se detallan a continuación:
C13: Mes anterior | E13: Mes actual | G13: Variación
A14: Cuenta Contable | B14: APORTES POR COBRAR | C14: Detalle | D14: Total | E14: Detalle | F14: Total
A16: 150.01.00.00.00 | B16: Aporte por cobrar a los trabajadores | D16: 5564849363 | F16: =SUM(E17:E19) -> 5334913333 | G16: =+F16-D16 -> -229936030.6
B17: Aporte Ordinario | C17: 283014.13 | E17: 570039.33
B18: Aporte Ordinario S .Escolar | C18: 2084859372 | E18: 2316117612
B19: Aporte Reconocimiento de tiempo servido | C19: 3479706977 | E19: 3018225682
A20: 150.02.00.00.00 | B20: Aportes por cobrar al Patrono | D20: 3863312909 | F20: =SUM(E21:E22) -> 4155145220 | G20: =+F20-D20 -> 291832311.3
B21: Aportes Por Cobrar Poder Jud.-Patrono | C21: 1559859399 | E21: 1596215233
B22: Apor. x Cobrar Poder Jud.-Patrono (S.E) | C22: 2303453510 | E22: 2558929987
A23: 150.03.00.00.00 | B23: Aportes por cobrar al Estado | D23: 378801164.6 | F23: =SUM(E24:E25) -> 407516745.3 | G23: =+F23-D23 -> 28715580.74
B24: Aportes Por Cobrar Poder Jud.-Estado | C24: 153031856.8 | E24: 156674222.9
B25: Apor. x Cobrar Poder Jud.-Estado (S.E) | C25: 225769307.8 | E25: 250842522.4
A26: 150.04.00.00.00 | B26: Otros aportes por cobrar | D26: 198245779.1 | F26: =SUM(E27:E30) -> 196604041 | G26: =+F26-D26 -> -1641738.06
B27: O. Aportes Por Cobrar Jubilados | C27: 172514879.8 | E27: 170915005.7
B28: O. Aportes Por Cobrar Pensionados | C28: 23901709.57 | E28: 23901709.57
B29: O. Aportes Por Cobrar E. Deductoras | C29: 1829189.76 | E29: 1787325.76
B32: TOTAL | D32: =SUM(D16:D30) -> 1.000520922e+10 | F32: =SUM(F16:F30) -> 1.009417934e+10 | G32: =SUM(G16:G30) -> 88970123.34

Sheet Nota 33
B2: Nota 33:
B3: Flujos de efectivo por actividades de operación
B4: Cuentas por pagar
B8: =+'Nota 8'!B5:E5 -> al 31 de Octubre de 2020
B11: Partidas correspondientes a las cuentas por pagar por los siguientes conceptos:
B13: Cuentas por Cobrar | C13: Monto mes anterior | D13: Monto mes actual | E13: Variación
B15: Retenciones a Pensionados | C15: 949633821.2 | D15: 961229719.2 | E15: =+D15-C15 -> 11595897.94
B16: Obligaciones por liquidar empleados y exempleados | C16: 28628551.19 | D16: 29445739.09 | E16: =+D16-C16 -> 817187.9
B17: Obligaciones transitorias por liquidar | C17: 4920313142 | D17: 4454845433 | E17: -465467708.5
B19: Saldo: | C19: =SUM(C15:C18) -> 5898575514 | D19: =SUM(D15:D18) -> 5445520892 | E19: =SUM(E15:E18) -> -453054622.7

Sheet Nota 34
B2: Nota 34:
B3: Flujos de efectivo por actividades de operación
B4: Provisión para pensiones en curso de pago
B8: =+'Nota 8'!B5:E5 -> al 31 de Octubre de 2020
B10: Recursos acumulados generados de las actividades del Fondo de Jubilaciones y Pensiones provenientes en su mayoría de los aportes recibidos de las cuotas obrero patronales-estatales, así como de los intereses netos ganados en inversiones, con el fin de atender las obligaciones que se deriven de los beneficios establecidos reglamentariamente para los jubilados y pensionados actuales así como de los nuevos jubilados y pensionados.
B13: Provisión para pensiones en curso de pago
B15: Provisión para pensiones en curso de pago | C15: 3072976100
B16: Menos
B17: Rendimientos acumulados | C17: -3256251107
B18: Total | C18: =SUM(C15:C17) -> -183275006.9

Sheet Nota 35
B2: Nota 35:
B3: Flujos de efectivo por actividades de operación
B4: Otros Pasivos
B8: =+'Nota 8'!B5:E5 -> al 31 de Octubre de 2020
B11: Lo correspondiente a cuota patronal del 8.75% que el Fondo de Jubilaciones y Pensiones debe pagar mensualmente a la Caja Costarricense de Seguro Social (C.C.S.S.).
B13: Entidad | C13: Monto mes anterior | D13: Monto mes actual | E13: Variación
B14: Caja Costarricense del Seguro Social | C14: 599991713 | D14: =+'Nota 21'!F12 -> 599761595.5 | E14: =+D14-C14 -> -230117.47
B15: Total | C15: =SUM(C14) -> 599991713 | D15: =SUM(D14) -> 599761595.5 | E15: =SUM(E14) -> -230117.47

Sheet Nota 36
B2: Nota 36:
B3: Flujos de efectivo por actividades de inversión
B4: Aportaciones recibidas - Reservas en formación
B8: =+'Nota 8'!B5:E5 -> al 31 de Octubre de 2020
B11: Este rubro corresponde a la Contribución Solidaria del mes
B13: Entidad | C13: Monto mes anterior | D13: Monto mes Actual
B14: Contribución Solidaria | C14: 380659523.8 | D14: 397109325.1
B15: Total | C15: =SUM(C14) -> 380659523.8 | D15: =SUM(D14) -> 397109325.1

Sheet Nota 37
B2: Nota 37:
B3: Estado de Cambios en el Patrimonio Neto
B4: Ajuste por valuación de instrumentos financieros al valor razonable con cambios en el ORI
B8: =+'Nota 8'!B5:E5 -> al 31 de Octubre de 2020
B11: Corresponde a la Valuación de precios de mercado correspondiente a las inversiones del valor razonzable con cambios en el ORI
B13: Entidad | C13: Monto mes anterior | D13: Monto mes Actual
B14: Valuación de instrumentos financieros | C14: -816308177.9 | D14: -918323544.5
B15: Total | C15: =SUM(C14) -> -816308177.9 | D15: =SUM(D14) -> -918323544.5
